Cogmind - Beta 15 @@@ ROGUE MODE // 2025.07.31 @ 20:26:51 Player: puppuppit Result: Destroyed by Y-72 Warden with Quantum Rifle Performance ------------- Evolutions (8) 4000 Regions Visited (38) 7600 Robots Destroyed (897) 4485 Value Destroyed (34906) 34906 Prototype IDs (109) 2180 Alien Tech Used (6) 1200 Bonus (29440) 29440 TOTAL SCORE: 83811 Bonus ------- Triggered High Security 500 High Alert Combat Kills 10881 Follower Combat Kills 3474 Entered Garrisons 200 Network Hubs Disabled 400 Registered with UFD 300 Met Optimus in HQ 500 Met Zhirov 300 Met Warlord at Base 500 MAIN.C Attacked Warlord 500 Warlord Defense Kills 5934 Built Enhanced Grunts 300 A7 Reached Mainframe 300 Met R17 at Cetus 500 Used Core Reset Matrix 3000 Met R17 at Research 2000 Scanned by Researcher 500 Acquired SGEMP 2000 Met Optimus at Protoforge 1000 Friendly Fire -3649 Cogmind --------- Core Integrity 0/1450 Matter 16/300 Energy 190/190 System Corruption 22% Temperature Cool (24) Movement Walking (93) Location -2/Protoforge Parts ------- > --- POWER (2) -------- Light Quantum Reactor > --- PROPULSION (9) --- Myomer Leg Experimental VSS Leg Experimental VSS Leg Experimental Surge Thruster > --- UTILITY (8) ------ 0bPrime Scrap Suit Makeshift Microdissipator Network Experimental Optical Array Improved Target Analyzer Experimental Core Analyzer > --- WEAPON (4) ------- Concept XC Strikerail Omega Cannon > --- INVENTORY (5) ---- Omega Cannon Tactical Quantum Warhead Peak State ------------ > --- POWER ------------ Light Quantum Reactor Improved Quantum Reactor > --- PROPULSION ------- Myomer Leg Shield Leg Biometal Leg Experimental VSS Leg Experimental VSS Leg Cooled Antigrav System Experimental Surge Thruster > --- UTILITY ---------- 0bPrime Scrap Suit Large Storage Unit Experimental Optical Array Improved Target Analyzer Experimental Core Analyzer Experimental Reaction Control System Centrium Medium Armor Plating > --- WEAPON ----------- Concept XC Strikerail Concept XC Strikerail Concept XC Strikerail Tactical Quantum Warhead > --- INVENTORY -------- Micro Antimatter Reactor Quantum Reactor Experimental Coolant Injector Makeshift Microdissipator Network Plexus Tether Advanced Recoil Stabilizer Experimental Focal Shield Transdimensional Reconstructor Advanced KE Penetrator Omega Cannon Omega Cannon SGEMP Prototype [Rating: 202] Favorites ----------- Power Heavy Ion Engine Engine Heavy Ion Engine Power Core Light Nuclear Core Reactor Vortex Chain Reactor Propulsion Light Treads Treads Light Treads Leg Experimental VSS Leg Wheel Wheel Hover Unit Combat Airjet Flight Unit Makeshift Flight Unit Utility Large Storage Unit Device Advanced Heat Sink Storage Large Storage Unit Processor Improved Target Analyzer Hackware Hacking Suite Protection Improved Propulsion Shielding Artifact Phase Armor Weapon Enhanced Autogun Energy Gun Heavy EM Pulse Gun Energy Cannon Core Cannon Ballistic Gun Enhanced Autogun Ballistic Cannon Improved Light Cannon Launcher Precision Rocket Launcher Special Weapon Improved Remote Datajack Slashing Weapon Experimental Terror Saw Piercing Weapon Heavy Pick Build | -11 -10 -10 -9 -9 -9 -8 -8 -8 -8 -8 -8 -8 -6 -6 -6 -6 -6 -6 -6 -5 -5 -5 -5 -5 -5 -4 -4 -4 -4 -4 -4 -4 -3 -3 -3 -2 -2 -2 ------- Run | Yrd Mat Min Mat Min Exi Min Mat Gar Mat Sto Rec Scr Fac Was Fac Ext Cet Arc Hub Fac Was Fac Upp Upp Zhi Pro Fac Was Fac Upp Upp War Pro Res Tes Res Qua Frg Slots Evolved 16 | . . . 2 . . . 2 . . . . . 4 . . . . . . 2 . . . . . . 2 . . . . . . 2 . 2 . . Power 1 | . . . . . . . . . . . . . . . . . . . . 1 . . . . . . . . . . . . . . . . . . Propulsion 7 | . . . . . . . 1 . . . . . 2 . . . . . . 1 . . . . . . . . . . . . . 1 . 2 . . Utility 6 | . . . . . . . 1 . . . . . 2 . . . . . . . . . . . . . 2 . . . . . . 1 . . . . Weapon 2 | . . . 2 . . . . . . . . . . . . . . . . . . . . . . . . . . . . . . . . . . . Parts Attached 603 | 6 10 . 27 . . 1 34 19 26 7 . 14 87 5 16 10 8 7 13 3 . 26 9 . 8 4 32 1 2 6 3 53 7 68 26 9 11 45 Power 91 | 1 3 . 3 . . . 2 1 3 . . 2 15 1 3 4 . . 1 1 . 4 2 . 3 1 6 . . 1 . 9 3 9 5 1 2 5 Engine 28 | 1 2 . 3 . . . 1 1 2 . . 1 3 . 3 3 . . . 1 . 1 1 . 2 . 1 . . . . 2 . . . . . . Core 29 | . 1 . . . . . 1 . 1 . . 1 9 . . 1 . . 1 . . 3 1 . . . 3 . . . . 5 . . 1 . . 1 Reactor 34 | . . . . . . . . . . . . . 3 1 . . . . . . . . . . 1 1 2 . . 1 . 2 3 9 4 1 2 4 Propulsion 145 | 2 . . 8 . . . 8 6 8 1 . 4 22 1 3 1 . . 8 2 . 8 1 . 3 1 3 . 1 . . 17 1 18 3 4 3 8 Treads 33 | 2 . . 8 . . . 8 6 7 1 . . . 1 . . . . . . . . . . . . . . . . . . . . . . . . Leg 6 | . . . . . . . . . . . . . . . . . . . . . . . . . . . . . . . . . . . . . . 6 Wheel 2 | . . . . . . . . . . . . . . . . . . . 2 . . . . . . . . . . . . . . . . . . . Hover 72 | . . . . . . . . . 1 . . 4 21 . 3 1 . . 4 1 . 1 . . . 1 . . . . . 6 1 17 3 4 3 1 Flight 32 | . . . . . . . . . . . . . 1 . . . . . 2 1 . 7 1 . 3 . 3 . 1 . . 11 . 1 . . . 1 Utility 196 | 1 2 . 6 . . . 6 8 8 4 . 1 26 1 6 1 4 5 2 . . 12 1 . 2 2 14 . 1 4 1 10 1 27 11 3 5 21 Device 81 | . . . 2 . . . 1 2 2 1 . . 10 1 2 . 3 3 . . . 6 1 . 1 2 8 . 1 1 1 2 . 14 4 2 1 10 Storage 19 | 1 1 . 2 . . . . . 1 . . 1 2 . 1 . . . . . . . . . . . 4 . . . . 1 . 2 3 . . . Processor 37 | . . . . . . . 1 1 . 1 . . 9 . 3 . . . . . . 2 . . . . . . . 1 . 4 1 5 . . 1 8 Hackware 35 | . . . . . . . 1 2 2 2 . . 4 . . 1 . 2 2 . . 3 . . . . 2 . . 1 . . . 6 4 1 2 . Protection 23 | . 1 . 2 . . . 3 3 3 . . . 1 . . . 1 . . . . 1 . . 1 . . . . 1 . 3 . . . . . 3 Artifact 1 | . . . . . . . . . . . . . . . . . . . . . . . . . . . . . . . . . . . . . 1 . Weapon 171 | 2 5 . 10 . . 1 18 4 7 2 . 7 24 2 4 4 4 2 2 . . 2 5 . . . 9 1 . 1 2 17 2 14 7 1 1 11 Energy Gun 21 | 2 3 . 2 . . . . . . . . . . . . . 1 . . . . . . . . . 8 1 . . . 4 . . . . . . Energy Cannon 4 | . . . . . . . . . . 1 . . . . 1 . . . . . . . . . . . . . . . . . . . 1 . 1 . Ballistic Gun 93 | . 1 . 4 . . . 14 3 7 . . 2 18 1 2 4 3 2 2 . . . 4 . . . 1 . . 1 2 4 2 7 . . . 9 Ballistic Cannon 31 | . . . 3 . . 1 3 1 . . . 5 5 1 . . . . . . . 2 . . . . . . . . . . . 3 6 . . 1 Launcher 10 | . 1 . 1 . . . 1 . . 1 . . 1 . 1 . . . . . . . . . . . . . . . . 1 . 3 . . . . Special Weapon 8 | . . . . . . . . . . . . . . . . . . . . . . . 1 . . . . . . . . 6 . 1 . . . . Impact Weapon . | . . . . . . . . . . . . . . . . . . . . . . . . . . . . . . . . . . . . . . . Slashing Weapon 1 | . . . . . . . . . . . . . . . . . . . . . . . . . . . . . . . . . . . . . . 1 Piercing Weapon 3 | . . . . . . . . . . . . . . . . . . . . . . . . . . . . . . . . 2 . . . 1 . . Special Melee Weapon . | . . . . . . . . . . . . . . . . . . . . . . . . . . . . . . . . . . . . . . . Unidentified Prototypes 65 | . . . 2 . . . 1 . . 2 . . 7 . 1 . 3 . . . . . . . 5 . 1 . . . . 11 . 8 7 . 6 11 Corrupted Parts 6 | . . . . . . . . . . . . . 1 . 1 . . . 1 . . . . . . . . . . . . 2 . . . . . 1 System Corruption 39 | . . . . . . . . . . . . . 10 . 4 . . . 5 . . . . . . . . . . . . 10 . . . . . 10 Parts Lost 172 | . 2 1 2 . . . 13 2 5 . . . 36 . 1 . 1 . 10 . . 20 . . . . 12 . 3 2 . 13 3 20 . 3 1 22 Power 19 | . 1 . . . . . 1 . 1 . . . 2 . 1 . . . . . . 3 . . . . 1 . . . . 4 1 2 . . . 2 Propulsion 65 | . . . . . . . 3 . 1 . . . 15 . . . 1 . 8 . . 8 . . . . 2 . 2 1 . 5 1 6 . 2 . 10 Utility 40 | . . 1 . . . . 2 . 2 . . . 7 . . . . . . . . 4 . . . . 3 . . 1 . 2 1 7 . 1 1 8 Weapon 48 | . 1 . 2 . . . 7 2 1 . . . 12 . . . . . 2 . . 5 . . . . 6 . 1 . . 2 . 5 . . . 2 Highest Loss Streak 13 | . 2 1 1 . . . 5 1 3 . . . 7 . 1 . 1 . 6 . . 6 . . . . 3 . 3 2 . 6 2 13 . 3 1 10 To Critical Strikes 1 | . . . . . . . 1 . . . . . . . . . . . . . . . . . . . . . . . . . . . . . . . Average Backups 13 | . 12 15 14 14 14 15 14 14 14 14 14 14 13 14 15 14 14 15 13 14 14 10 3 4 3 4 10 13 13 13 15 13 13 14 13 11 11 10 Power . | . . 1 . . 1 2 1 1 . . . . 1 1 . 1 . . . . 1 . . 1 . . 1 1 1 1 1 . 2 2 1 . . 1 Propulsion 2 | . 3 4 3 4 4 4 4 3 3 2 2 1 1 4 5 5 4 3 2 . . . 1 1 1 1 2 2 1 . . 1 . 2 3 2 2 . Utility 5 | . 2 3 5 6 6 6 5 5 5 6 6 6 5 3 4 3 3 4 5 7 7 5 1 1 1 2 4 6 6 7 8 4 4 3 4 5 4 4 Weapon 4 | . 4 6 4 3 3 3 3 4 5 5 6 6 6 5 5 4 6 6 5 6 6 3 . 1 . . . 2 3 3 4 5 5 4 3 2 2 2 Tool/Special . | . . . . . . . . . . . . . . . . . . . . . . . . . . . . . . . . . . . . . . . Unused Backups 145 | . 4 . 11 2 1 . 7 3 6 2 1 10 21 6 12 1 . 4 . . 1 11 1 . . 2 9 1 . 2 1 4 2 10 5 1 1 3 Power 21 | . . . 1 . . . 3 . 1 . . 2 4 . . 1 . . . . . 1 . . . . 3 . . 1 . . . 2 1 . 1 . Propulsion 23 | . 3 . 6 . . . . . . . . 2 2 . 1 . . 1 . . . . . . . 2 4 1 . . . . . 1 . . . . Utility 66 | . 1 . 4 2 . . 2 2 2 . 1 5 9 5 8 . . 3 . . 1 7 . . . . 1 . . . . 3 . 3 3 1 . 3 Weapon 32 | . . . . . . . 2 1 3 2 . 1 5 1 3 . . . . . . 2 1 . . . 1 . . 1 1 1 2 4 1 . . . Tool/Special 3 | . . . . . 1 . . . . . . . 1 . . . . . . . . 1 . . . . . . . . . . . . . . . . Average Slot Usage (%) 93 | . 93 98 99 100 100 100 98 99 99 99 100 99 95 98 99 100 99 100 95 55 76 55 81 82 75 94 87 89 84 73 73 83 97 88 90 99 94 76 Engine 4 | . 9 . 9 11 11 11 5 7 8 9 9 7 . . 5 5 . . . 2 11 3 . . 3 9 . . . . . 5 . . . . . . Core 2 | . 3 14 1 . . . 3 1 . . . 1 4 5 . . 5 6 5 . . 1 5 5 1 . 4 5 5 5 5 3 5 . . . . . Reactor 1 | . . . . . . . . . . . . . . . . . . . . . . . . . 2 1 2 . . . . . 3 5 4 8 8 7 Treads 11 | . 28 28 22 22 22 22 26 27 26 26 27 11 . . . . . . . . . . . . . . . . . . . . . . . . . . Hover 12 | . . . . . . . . . . . . 15 30 31 33 33 32 33 31 12 17 8 . . . . . . . . . 1 31 26 28 38 37 11 Flight 2 | . . . . . . . . . . . . . . . . . . . . 7 11 9 23 23 24 29 25 26 21 15 15 19 . . . . . 2 Device 5 | . . . 1 . . 6 8 3 4 . . . 2 . 1 2 6 4 . . . 1 10 11 11 12 12 15 15 17 17 17 11 10 14 8 6 7 Storage 7 | . 14 14 11 11 11 11 9 9 9 9 9 9 6 6 6 6 6 6 6 5 5 3 . . . . 4 5 5 5 5 5 5 4 4 4 4 3 Processor 4 | . . . . . . . 1 7 1 1 . . 10 13 14 20 20 19 4 . . . . . . . . . . 4 3 4 11 10 . . . 8 Hackware 8 | . . . . . . . 2 . 8 15 18 18 11 6 4 3 . 2 21 23 23 20 11 11 11 11 16 15 15 6 10 7 5 10 17 20 21 6 Protection 2 | . 9 12 8 11 11 4 5 6 3 . . . . 5 4 . . . . . . . 4 5 5 3 . . . . . . . . . . . 2 Energy Gun 2 | . 26 28 11 . . . . . . . . . . . . . . . . . . . . . . . 6 17 15 17 14 3 10 . . . . . Ballistic Gun 18 | . . . 17 11 11 . 17 35 35 35 36 22 17 25 25 25 25 26 22 . 5 2 18 17 6 23 11 3 4 . 1 13 10 16 14 . . 9 Ballistic Cannon 6 | . . . 15 32 33 43 17 . . . . 12 6 . . . . . . . . . . . . . . . . . . . . . 3 15 6 . Peak Build Rating 202 | 6 12 12 22 22 22 22 32 36 36 39 37 38 70 74 75 77 84 88 91 73 74 89 86 80 89 95 115 105 112 112 98 133 135 172 182 187 200 202 Average Rating 65 | 5 10 11 18 21 21 21 27 31 33 36 36 33 55 67 70 72 80 85 83 52 73 55 81 80 76 88 101 102 109 99 94 104 130 152 171 179 177 172 On Entrance 72 | . 6 12 11 22 22 22 21 29 30 35 37 36 32 69 69 72 75 84 88 44 73 74 72 80 80 87 95 102 104 97 94 96 133 132 166 177 160 184 Naked Turns . | . . . . . . . . . . . . . . . . . . . . . . . . . . . . . . . . . . . . . . . Heaviest Build 108 | 12 34 32 45 45 45 46 51 52 46 42 40 41 53 49 52 56 56 54 53 30 30 39 58 45 51 48 51 50 51 52 51 64 65 103 105 105 90 108 Greatest Support 130 | 40 40 40 46 46 46 46 69 66 67 67 64 64 52 51 55 58 56 55 55 30 30 43 47 47 49 57 59 50 56 52 45 81 81 108 122 125 117 130 Greatest Overweight (x) 12 | . . . 1 . . . . . . . . 2 1 1 1 1 . . 1 . . 12 1 . 1 . 4 . . 1 1 1 . 1 1 . 1 6 Average Overweight (x) . | . . . . . . . . . . . . . . . . . . . . . . . . . . . . . . . . . . . . . . . Largest Inventory Capacity 30 | 8 15 15 15 15 15 15 15 15 15 15 15 15 15 15 15 15 15 15 15 15 15 15 5 5 5 5 30 15 15 15 15 15 15 15 15 15 15 15 Average Capacity 14 | 7 14 15 15 15 15 15 15 15 15 15 15 15 15 15 15 15 15 15 15 15 15 11 5 5 5 5 12 15 15 15 15 15 15 15 15 15 15 14 Most Carried 15 | 1 15 15 15 15 15 15 15 15 15 15 15 15 15 15 15 15 15 15 15 15 15 15 5 5 5 5 15 15 15 15 15 15 15 15 15 15 15 15 Average Carried 14 | . 12 15 14 14 14 14 14 14 14 14 14 14 14 14 14 14 14 14 13 14 14 10 4 5 4 4 11 14 14 13 15 14 14 14 14 14 14 13 Final Capacity 15 | 8 15 15 15 15 15 15 15 15 15 15 15 15 15 15 15 15 15 15 15 15 15 5 5 5 5 5 15 15 15 15 15 15 15 15 15 15 15 15 Final Carried 15 | 1 15 15 15 15 15 15 15 15 15 15 14 15 15 15 15 15 15 15 15 15 15 5 5 5 5 5 15 15 15 15 15 15 15 15 15 15 15 15 Class Distribution -------------------- 23% | Scavenger-Gunner 14% | Hacker-Gunner 13% | Gunner 11% | Tank 6% | Hacker-Sprinter 4% | Mutant 4% | Derelict-Gunner 3% | Scavenger-Tank 3% | Hacker-Mutant 3% | Wizard-Sprinter Dominant Class ---------------- Mutant | -10/Materials Mutant | -10/Mines Tank | -9/Materials Tank | -9/Mines Tank | -9/Exiles Gunner | -8/Mines Gunner | -8/Materials Scavenger-Gunner | -8/Garrison Gunner | -8/Materials Hacker-Gunner | -8/Storage Hacker-Gunner | -8/Recycling Derelict-Gunner | -8/Scraptown Scavenger-Gunner | -6/Factory Gunner | -6/Waste Scavenger-Gunner | -6/Factory Scavenger-Gunner | -6/Extension Commander-Gunner | -6/Cetus Scavenger-Gunner | -6/Archives Scavenger-Gunner | -6/Hub_04(d) Hacker-Mutant | -5/Factory Hacker-Mutant | -5/Waste Hacker-Mutant | -5/Factory Hacker-Sprinter | -5/Upper Caves Hacker-Sprinter | -5/Upper Caves Hacker-Sprinter | -5/Zhirov Hacker-Sprinter | -4/Proximity Caves Hacker-Sprinter | -4/Factory Hacker-Sprinter | -4/Waste Hacker-Sprinter | -4/Factory Skirmisher | -4/Upper Caves Hacker-Gunner | -4/Upper Caves Hacker-Tank | -4/Warlord Scavenger-Gunner | -3/Proximity Caves Scavenger-Gunner | -3/Research Wizard-Tank | -3/Testing Wizard-Sprinter | -2/Research Wizard-Sprinter | -2/Quarantine Scavenger-Tank | -2/Protoforge Resources | -11 -10 -10 -9 -9 -9 -8 -8 -8 -8 -8 -8 -8 -6 -6 -6 -6 -6 -6 -6 -5 -5 -5 -5 -5 -5 -4 -4 -4 -4 -4 -4 -4 -3 -3 -3 -2 -2 -2 ----------- Run | Yrd Mat Min Mat Min Exi Min Mat Gar Mat Sto Rec Scr Fac Was Fac Ext Cet Arc Hub Fac Was Fac Upp Upp Zhi Pro Fac Was Fac Upp Upp War Pro Res Tes Res Qua Frg Matter Collected 35757 | 260 425 35 1189 106 . 370 2924 1107 2365 1786 264 177 5711 289 1552 1223 339 421 879 . . 796 650 3 219 188 1218 . 140 129 16 1768 303 2830 2833 206 651 2385 Remotely 64 | . . . . . . . . . . . . . . . . . . . . . . . 64 . . . . . . . . . . . . . . . Salvage Created 39926 | 145 1104 92 1857 106 . 462 2325 1258 2700 2467 884 . 6573 307 2284 2138 133 551 1347 . . 558 64 . 391 20 1551 . 76 106 . 1696 793 3291 2236 176 658 1577 Parts 1852 | 11 50 9 118 16 . 24 129 72 163 142 37 . 282 2 98 80 2 44 61 . . 30 3 . 4 1 54 . 5 4 . 43 25 140 117 14 24 48 Haulers Intercepted 36 | . 2 . 5 . . . 2 . 5 5 . . 5 . 1 . . . 1 . . . . . . . 3 . . . . . . 3 2 . 2 . Recyclers Shooed 33 | . . 1 1 . . . 6 . 3 2 1 . 8 . 5 1 . . 1 . . . . . . . . . . . . . . . 3 . 1 . Parts Field Recycled 17 | . . . . . . . . . . . . . . . . . . . . . . 3 14 . . . . . . . . . . . . . . . Retrieved Matter 446 | . . . . . . . . . . . . . . . . . . . . . . 82 364 . . . . . . . . . . . . . . . Parts Self-Destructed 35 | . . . . . . . . . . . . . . . . . . . . . . . 10 . 3 1 . . . 4 . . 17 . . . . . Prevented . | . . . . . . . . . . . . . . . . . . . . . . . . . . . . . . . . . . . . . . . Kills | -11 -10 -10 -9 -9 -9 -8 -8 -8 -8 -8 -8 -8 -6 -6 -6 -6 -6 -6 -6 -5 -5 -5 -5 -5 -5 -4 -4 -4 -4 -4 -4 -4 -3 -3 -3 -2 -2 -2 ------- Run | Yrd Mat Min Mat Min Exi Min Mat Gar Mat Sto Rec Scr Fac Was Fac Ext Cet Arc Hub Fac Was Fac Upp Upp Zhi Pro Fac Was Fac Upp Upp War Pro Res Tes Res Qua Frg Combat Hostiles Destroyed 580 | . 11 1 38 6 . 7 50 27 47 30 3 . 70 1 26 23 1 3 16 . . 15 . . . 1 21 . 3 2 . 43 12 45 21 7 3 47 Melee 2 | . . . . . . . . . . . . . 2 . . . . . . . . . . . . . . . . . . . . . . . . . Guns 352 | . 7 . 15 . . . 19 22 39 30 3 . 38 1 18 17 1 3 13 . . 5 . . . 1 20 . 3 2 . 14 11 31 16 . . 23 Cannons 87 | . . . 14 2 . 5 24 1 . . . . 22 . . . . . . . . 3 . . . . . . . . . 3 . 4 . 3 3 3 AOE 137 | . 4 1 9 4 . 2 7 4 8 . . . 8 . 8 6 . . 3 . . 6 . . . . . . . . . 26 1 10 5 4 . 21 Classes Destroyed 31 | 3 6 . 2 . . 1 4 . 1 1 . . 3 1 1 . . . . . . . . . . . . . . . . 3 1 . 1 . . 3 Worker 56 | 2 3 1 5 1 . 2 6 . 8 10 . . 7 . 1 1 . . 3 . . 1 . . . . . . . . . . . 2 1 . 2 . Builder 38 | . 2 1 2 1 . 1 3 . 5 3 1 . 6 . 4 1 . . 3 . . . . . . . . . . . . . . . 3 . 1 1 Tunneler 13 | 2 1 1 . 1 . 1 . . . . . . 3 . . 2 . . 1 . . . . . . . . . . . . . . . . 1 . . Hauler 37 | . 2 . 5 . . . 2 . 5 5 . . 5 . 1 . . . 1 . . . . . . . 3 . . . . . . 3 2 . 2 1 Recycler 82 | 1 4 . 3 . . 3 9 . 6 6 9 . 20 . 6 4 . . 1 . . . . . . . 1 . . . . . . 2 6 . 1 . Mechanic 7 | . . . . . . . . . . 1 . . . . . 1 . . . . . . . . . . . . . . . 2 . . 1 . 1 1 Operator 26 | . 1 . 1 . . . 2 . 1 2 . . 3 . . . . 9 1 . . . . . . . . . . . . . . 3 1 . . 2 Drone 14 | . . . . . . . . . . . . . . . . . . . . . . . . . . . . . . . . . . . . . . 14 Watcher 41 | . 3 . 5 . . . 2 2 4 2 . . 5 . 1 2 2 . 1 . . . . . . . 1 . . . . . . 4 2 . 1 4 Swarmer 104 | . 3 . 7 4 . 2 9 3 5 6 . . 5 . 8 1 . . 2 . . 4 . . . 1 8 . 3 1 . 3 1 9 5 5 . 9 Cutter 6 | . . . . . . . . . . . . . 3 . . . . . 1 . . 2 . . . . . . . . . . . . . . . . Saboteur 4 | . . . . . . . . . . . . . 2 . . . . . . . . . . . . . . . . . . 2 . . . . . . Grunt 232 | . 8 1 24 2 . 4 25 14 26 11 . . 28 . 13 11 . . 5 . . . . . . . 9 . . . . 21 4 17 2 2 2 3 Brawler 14 | . . . . . . . . . 3 . . . 5 . . 2 . . . . . . . . . . . . . . . 3 1 . . . . . Duelist 16 | . . . . . . 1 1 . 4 . . . 5 . . 2 . . . . . . . . . . . . . . . 3 . . . . . . Protector 5 | . . . . . . . 1 . 2 . . . 1 . . . . . . . . . . . . . . . . . . . . . . . . 1 Researcher 2 | . . . . . . . . . . . . . . . . . . . . . . . . . . . . . . . . . . . 1 . 1 . Sentry 75 | . . . 7 . . . 9 8 5 12 3 . 8 . 2 5 . 3 4 . . 2 . . . . 1 . . 1 . . 1 3 . . . 1 Demolisher 3 | . . . . . . . . . . . . . . . . . . . . . . . . . . . . . . . . 1 . 2 . . . . Specialist 8 | . . . . . . . 2 . . . . . . . . . . . 1 . . . . . . . . . . . . 1 . 1 . . . 3 Hunter 40 | . . . . . . . 2 2 2 1 . . 4 . 1 1 . . 2 . . 4 . . . . . . . . . 3 5 6 3 . . 4 Programmer 36 | . . . . . . . . . . . . . 9 . 1 . . . 1 . . 3 . . . . 2 . . . . 2 . 5 11 . 1 1 Heavy 2 | . . . . . . . 1 . . . . . . . . . . . . . . . . . . . 1 . . . . . . . . . . . Behemoth 3 | . . . . . . . . . . . . . . . 1 1 . . . . . . . . . . . . . . . . . 1 . . . . Compactor 1 | . . . . . . . . . . . . . . 1 . . . . . . . . . . . . . . . . . . . . . . . . Cetus Guard 1 | . . . . . . . . . . . . . . . . . 1 . . . . . . . . . . . . . . . . . . . . . Enhanced Grunt 2 | . . . . . . . . . . . . . . . . . . . 2 . . . . . . . . . . . . . . . . . . . Enhanced Demolisher 1 | . . . . . . . . . . . . . . . . . . . . . . . . . . . . . . . . 1 . . . . . . Hotshot 3 | . . . . . . . . . . . . . . . . . . . . . . . . . . . . . . . . . . . . . . 3 Striker 8 | . . . . . . . . . . . . . . . . . . . . . . . . . . . . . . . . 2 . 2 . . . 4 Executioner 6 | . . . . . . . . . . . . . . . . . . . . . . . . . . . . . . . . 2 . 1 . . . 3 Elite 2 | . . . . . . . . . . . . . . . . . . . . . . . . . . . . . . . . . . . . . . 2 Scrapoid 2 | . . . . . . . . . . . . . . . . . . . . . . . . . . . . . . . . . . . . . . 2 Zionite 1 | . . . 1 . . . . . . . . . . . . . . . . . . . . . . . . . . . . . . . . . . . Tinkerer 1 | . . . . . . . . . . . . . . . . . . . . . . . . . . . . . . . . . 1 . . . . . Surgeon 1 | . . . . . . . . . . . . . . . . . . . . . . . . . . . . . . . . 1 . . . . . . Thug 3 | . . . . . . . . . . . . . . . 1 1 . . . . . . . . . . . . . . . 1 . . . . . . Savage 3 | . . . . . . . . . . . . . . . . 1 . . . . . . 1 . . . . . . . . 1 . . . . . . Best Kill Streak 21 | 3 6 2 10 4 . 3 14 11 8 7 4 . 9 1 5 7 2 4 13 . . 4 . . . 1 5 . 3 2 . 21 4 5 6 5 3 12 Combat Bots Only 20 | . 5 1 7 4 . 3 11 11 6 4 2 . 9 1 4 7 1 3 5 . . 4 . . . 1 5 . 3 2 . 20 4 5 5 5 1 8 Max Kills in Single Turn 6 | 1 5 1 3 4 . 2 3 4 3 2 2 . 3 1 4 3 1 1 3 . . 2 1 . . 1 2 . 1 1 . 4 2 3 3 4 2 6 Gunslinging 1 | . . . . . . . . 1 1 1 . . . . . . . . . . . . . . . . . . . . . 1 1 1 . . . . Exploded 5 | . 4 1 2 4 . 1 3 4 2 . . . 2 . 2 2 . . 2 . . 2 . . . . . . . . . 4 1 3 3 4 . 5 Melee 1 | . . . . . . . . . . . . . 1 . . . . . . . . . . . . . . . . . . . . . . . . . Uniques/NPCs Destroyed . | . . . . . . . . . . . . . . . . . . . . . . . . . . . . . . . . . . . . . . . Combat | -11 -10 -10 -9 -9 -9 -8 -8 -8 -8 -8 -8 -8 -6 -6 -6 -6 -6 -6 -6 -5 -5 -5 -5 -5 -5 -4 -4 -4 -4 -4 -4 -4 -3 -3 -3 -2 -2 -2 -------- Run | Yrd Mat Min Mat Min Exi Min Mat Gar Mat Sto Rec Scr Fac Was Fac Ext Cet Arc Hub Fac Was Fac Upp Upp Zhi Pro Fac Was Fac Upp Upp War Pro Res Tes Res Qua Frg Hostile Shots Fired 2668 | . 49 3 58 4 . 14 219 92 118 41 2 . 391 . 59 61 13 2 76 . . 278 6 . . 12 199 . 47 10 . 69 38 190 295 71 30 221 Missed 967 | . 16 1 18 2 . 5 60 31 31 14 2 . 142 . 29 20 4 . 25 . . 110 2 . . 7 82 . 28 4 . 25 15 82 108 31 18 55 Hits 1701 | . 33 2 40 2 . 9 159 61 87 27 . . 249 . 30 41 9 2 51 . . 168 4 . . 5 117 . 19 6 . 44 23 108 187 40 12 166 Melee 40 | . . . . . . 1 3 . 7 . . . 5 . . . . . 2 . . 3 . . . . . . . . . 1 . . . . . 18 Projectile 1661 | . 33 2 40 2 . 8 156 61 80 27 . . 244 . 30 41 9 2 49 . . 165 4 . . 5 117 . 19 6 . 43 23 108 187 40 12 148 AOE 15 | . . . . . . . . . . . . . 2 . . . . . 1 . . 2 . . . . . . . . . 2 . 6 . . . 2 Critical Strikes 109 | . 1 . 1 . . 3 11 4 4 1 . . 9 . 3 4 2 . 3 . . 5 . . . . 8 . 1 . . 8 . 2 13 1 1 24 Actively Blocked 4 | . 1 . 1 . . . . . . . . . . . 2 . . . . . . . . . . . . . . . . . . . . . . . Damage Taken 32813 | . 508 63 594 63 . 150 2832 910 1476 371 . . 4141 . 710 708 203 49 1286 . . 3028 87 . . 79 2289 . 326 482 . 1559 481 2269 1887 663 151 5448 Core 4955 | . 91 . 81 . . 16 175 115 152 15 . . 363 . 101 107 53 . 209 . . 901 49 . . 17 455 . 22 138 . 239 56 226 177 31 22 1144 Absorbed by Shields 3006 | . . . . . . . . . . . . . . . . 191 53 . . . . . . . . . . . . . . . . 425 1491 244 103 499 Redirected to Shielding 348 | . 47 3 35 20 . 13 86 9 2 . . . 28 . 63 . . . . . . . . . . . . . . . . 42 . . . . . . Ignored by Resistances 540 | . . . . . . . . . . . . . . . . . . . . . . . . . . . 169 . . . . . . 30 341 . . . Regen/Repaired (Parts) 3050 | . 48 . 192 . . . 132 . 100 272 . . 480 38 122 . . . . . . . . . . . 165 . . . . 112 . 760 302 75 205 47 Core Remaining (%) 43 | 100 . 63 . . . 75 . . . . . 16 . . . . . . 2 . . . . . . 3 . . . . . . 20 . 69 . . . Volleys Fired 1698 | 9 64 6 74 6 . 23 137 70 106 93 16 . 263 9 71 54 10 19 46 . . 46 15 . 19 7 102 2 12 23 . 70 20 107 113 10 6 70 Largest 4 | 2 2 2 4 4 . 4 4 4 4 4 4 . 4 4 4 4 4 4 4 . . 4 4 . 1 4 4 4 4 4 . 4 4 4 4 1 2 4 Hottest 489 | 80 90 90 130 122 . 132 140 117 114 119 100 . 133 116 133 133 125 136 146 . . 154 132 . 33 132 292 489 286 339 . 186 183 174 152 54 354 354 Shots Fired 5479 | 18 120 12 287 21 . 85 500 204 401 361 63 . 933 35 256 209 38 74 147 . . 87 29 . 19 27 273 7 33 59 2 217 71 350 355 10 8 168 Gun 4480 | 18 119 10 185 5 . 3 243 195 390 359 63 . 612 35 245 200 37 74 133 . . 55 22 . 15 27 273 7 33 59 2 193 71 325 340 . . 132 Cannon 871 | . . . 95 15 . 80 250 6 . 2 . . 300 . 7 1 1 . 11 . . 26 7 . . . . . . . . . . 17 13 9 8 23 Launcher 99 | . 1 2 7 1 . 2 7 3 11 . . . 21 . 4 8 . . 3 . . 6 . . . . . . . . . 4 . 3 2 1 . 13 Special 29 | . . . . . . . . . . . . . . . . . . . . . . . . . 4 . . . . . . 20 . 5 . . . . Kinetic 4848 | . 15 . 206 20 . 83 493 201 390 361 63 . 912 35 248 200 37 74 144 . . 81 29 . 15 27 179 . 5 . . 176 39 317 338 9 4 147 Thermal 210 | . . . . . . . . . . . . . . . 4 1 1 . . . . . . . . . 94 7 28 59 2 . . . 2 . 4 8 Explosive 114 | . 1 2 7 1 . 2 7 3 11 . . . 13 . 4 8 . . 3 . . 6 . . . . . . . . . 22 . 8 2 1 . 13 Electromagnetic 214 | 18 104 10 74 . . . . . . . . . 8 . . . . . . . . . . . . . . . . . . . . . . . . . Entropic 87 | . . . . . . . . . . . . . . . . . . . . . . . . . . . . . . . . 17 32 25 13 . . . Robot Hit Streak 35 | 4 8 6 10 6 . 7 10 9 16 21 8 . 17 10 18 20 10 14 7 . . 7 4 . 8 4 11 10 3 7 . 8 6 10 14 9 12 35 Robot Miss Streak 9 | 2 4 1 5 2 . 4 6 8 9 6 2 . 7 2 6 5 2 5 5 . . 3 3 . 1 5 5 1 4 2 1 7 7 7 7 . 1 2 Penetration Max 2 | . . . . . . . . . 1 . . . 1 1 2 1 1 . 1 . . 1 . . 1 . 1 . . . . 1 . 2 2 1 1 1 Secondary Targets 77 | . . . 1 . . . 2 7 7 6 . . 6 . 5 3 1 . 3 . . . . . . . 8 . 2 . . 6 5 6 5 . . 4 Max Gunslinging Chain 2 | . . . 1 . . . 1 1 2 1 . . 1 . 1 1 1 . 1 . . . . . . . 1 . 1 . . 1 1 1 1 . . 1 Shots Hit Robots 3000 | 11 74 9 130 10 . 37 305 99 249 184 29 . 521 25 150 130 23 38 64 . . 47 5 . 16 12 144 6 6 11 . 122 48 168 180 7 18 122 Core Hits 1685 | 5 32 6 75 8 . 23 144 58 144 84 15 . 266 3 72 72 9 24 48 . . 26 5 . 9 3 56 1 3 4 . 129 37 114 70 10 9 121 Critical Kills 65 | . . . . . . . . . 4 . . . 10 . 6 5 2 8 6 . . 2 . . . . 1 . . . . 3 . 7 4 . . 7 Critical Parts Destroyed 102 | . . . . . . . 1 2 3 1 . . 14 . 7 12 2 4 10 . . 2 . . 1 . 2 . . . . 4 3 10 5 . 6 13 Critical Strikes 222 | . 3 . 7 . . 4 9 2 7 1 . . 36 1 14 17 4 12 16 . . 7 . . 1 . 3 . . . . 15 3 21 9 . 8 22 Destroy 172 | . . . . . . . 1 2 7 1 . . 25 1 14 17 4 12 16 . . 4 . . 1 . 3 . . . . 9 . 18 9 . 6 22 Blast 29 | . . . 2 . . 4 8 . . . . . 11 . . . . . . . . 3 . . . . . . . . . . . 1 . . . . Corrupt 8 | . 3 . 5 . . . . . . . . . . . . . . . . . . . . . . . . . . . . . . . . . . . Sever 6 | . . . . . . . . . . . . . . . . . . . . . . . . . . . . . . . . 5 . 1 . . . . Impale 2 | . . . . . . . . . . . . . . . . . . . . . . . . . . . . . . . . . . . . . 2 . Detonate 5 | . . . . . . . . . . . . . . . . . . . . . . . . . . . . . . . . 1 3 1 . . . . Melee Attacks 40 | . . . . . . . . . . . . . . . . . . . . . . . . . . . . . . . . . . . . 11 29 . Impact . | . . . . . . . . . . . . . . . . . . . . . . . . . . . . . . . . . . . . . . . Slashing . | . . . . . . . . . . . . . . . . . . . . . . . . . . . . . . . . . . . . . . . Piercing 40 | . . . . . . . . . . . . . . . . . . . . . . . . . . . . . . . . . . . . 11 29 . Sneak Attacks 9 | . . . . . . . . . . . . . . . . . . . . . . . . . . . . . . . . . . . . 2 7 . Combat Hostiles . | . . . . . . . . . . . . . . . . . . . . . . . . . . . . . . . . . . . . . . . Follow-up Attacks . | . . . . . . . . . . . . . . . . . . . . . . . . . . . . . . . . . . . . . . . Damage Inflicted 105023 | 234 1600 303 3429 386 . 972 6117 2066 6475 3526 544 . 13272 674 4767 5028 599 1005 2915 . . 2433 139 . 462 202 3760 196 153 314 . 11920 2211 7872 7382 764 2289 11014 Guns 63514 | 169 1273 109 1387 35 . 28 2224 1788 4824 3526 544 . 8145 674 4170 3333 599 1005 2218 . . 1030 139 . 462 202 3760 196 153 314 . 3555 1686 6003 6340 . . 3623 Cannons 12596 | . . . 1006 148 . 777 3247 27 . . . . 3129 . . . . . . . . 314 . . . . . . . . . . . 251 94 268 1389 1946 Explosions 26962 | 65 327 194 1036 200 . 161 645 251 1631 . . . 1998 . 597 1684 . . 680 . . 1072 . . . . . . . . . 7769 525 1470 894 352 . 5411 Melee 996 | . . . . . . . . . . . . . . . . . . . . . . . . . . . . . . . . . . . . 144 852 . Ramming 211 | . . . . 3 . 6 1 . 20 . . . . . . 11 . . 17 . . 17 . . . . . . . . . . . . 54 . 48 34 Kinetic 66316 | . 121 . 1718 183 . 805 5471 1815 4824 3526 544 . 11274 674 4170 3333 599 1005 2218 . . 1344 139 . 462 202 2445 . 57 . . 2794 535 4936 6206 268 79 4569 Thermal 5553 | 65 275 44 204 . . . . . . . . . . . . . . . . . . . . . . . 1315 196 96 314 . 209 525 . . . 1310 1000 Explosive 24968 | . 16 150 832 200 . 161 645 251 1631 . . . 1566 . 597 1684 . . 476 . . 1072 . . . . . . . . . 7560 . 1470 894 352 . 5411 Electromagnetic 2777 | 169 1188 109 675 . . . . . . . . . 432 . . . . . 204 . . . . . . . . . . . . . . . . . . . Impact . | . . . . . . . . . . . . . . . . . . . . . . . . . . . . . . . . . . . . . . . Slashing 744 | . . . . . . . . . . . . . . . . . . . . . . . . . . . . . . . . 596 . 148 . . . . Piercing 996 | . . . . . . . . . . . . . . . . . . . . . . . . . . . . . . . . . . . . 144 852 . Entropic 3458 | . . . . . . . . . . . . . . . . . . . . . . . . . . . . . . . . 761 1151 1318 228 . . . Highest Corruption 22 | . . . . . . . 2 3 3 3 3 . 11 7 11 11 11 11 12 . 6 14 14 14 14 14 1 6 6 11 11 11 10 6 15 8 8 22 Average Corruption 6 | . . . . . . . 1 2 3 3 3 . 4 7 7 11 11 6 3 . 6 9 14 14 14 14 1 4 6 9 11 10 10 4 11 1 8 12 Corruption Purged 34 | . . . . . . . . . . . . . 12 . . . . 11 . . . . . . . . . . . . . . . 7 4 . . . Corruption Blocked . | . . . . . . . . . . . . . . . . . . . . . . . . . . . . . . . . . . . . . . . Effects 586 | . . . . . . . 33 43 32 37 18 . 36 19 41 36 14 9 4 . 1 40 31 3 4 6 5 3 4 14 6 8 23 6 61 3 21 25 Message Errors 120 | . . . . . . . 8 11 6 4 4 . 10 . 6 8 5 1 1 . 1 11 7 . . 1 1 1 1 1 1 1 8 2 12 . 4 4 Matter Fused 120 | . . . . . . . 6 9 4 12 6 . 5 3 7 7 4 4 . . . 4 7 1 1 . 1 . . 2 1 1 4 1 16 2 7 5 Heat Flow Errors 88 | . . . . . . . 6 8 7 3 . . 6 5 5 7 1 1 . . . 6 4 1 1 . . . 3 2 1 2 3 1 8 . 2 5 Energy Discharges 66 | . . . . . . . 2 3 4 6 4 . 5 5 5 4 1 1 . . . 5 3 . . 1 1 . . 2 . 1 2 1 3 . 4 3 Parts Rejected 8 | . . . . . . . . 1 3 . . . 1 . . . . . 1 . . 1 . . . . . . . . . . . . 1 . . . Parts Fused 6 | . . . . . . . . 2 1 . . . . . . 3 . . . . . . . . . . . . . . . . . . . . . . Data Loss (minor) 62 | . . . . . . . 4 1 4 8 2 . 3 2 5 1 2 . . . . 8 1 1 . 1 1 . . 3 . 1 2 1 5 . 1 5 Data Loss (major) 29 | . . . . . . . 3 1 . . . . 3 1 6 . . . . . . 2 2 . 1 . 1 1 . 1 1 . . . 3 1 1 1 Misfires 30 | . . . . . . . 1 4 1 . . . 2 . 3 1 1 . . . . 1 3 . . 1 . . . 2 2 2 1 . 4 . 1 . Alerts 14 | . . . . . . . 1 1 . . 1 . . 2 2 1 . 1 . . . . 1 . 1 . . . . . . . 1 . 1 . . 1 Misdirections 7 | . . . . . . . . . . . . . . . . . . . 2 . . 1 2 . . . . . . . . . . . 2 . . . Weapon Failures 36 | . . . . . . . 2 2 2 4 1 . 1 1 2 4 . 1 . . . 1 1 . . 2 . 1 . 1 . . 2 . 6 . 1 1 Overload Shots 6 | . . . . . . . . . . . . . . . 3 1 1 . . . . . . . . . . 1 . . . . . . . . . . Effects 1 | . . . . . . . . . . . . . . . 1 . . . . . . . . . . . . . . . . . . . . . . . Heat Surge 1 | . . . . . . . . . . . . . . . 1 . . . . . . . . . . . . . . . . . . . . . . . Overflow Damage 2517 | 27 11 . 98 . . 6 38 . 92 . . . 75 . 100 82 . . 39 . . 7 . . . . . . . . . 244 . 39 78 119 975 487 Projectiles 1491 | . . . 49 . . 6 32 . . . . . 43 . . . . . . . . . . . . . . . . . . 37 . . . 11 841 472 Explosions 842 | 27 11 . 49 . . . 6 . 92 . . . 32 . 100 82 . . 39 . . . . . . . . . . . . 207 . 39 78 65 . 15 Melee 184 | . . . . . . . . . . . . . . . . . . . . . . 7 . . . . . . . . . . . . . 43 134 . Knockbacks 94 | . . . 10 1 . 16 31 . . . . . 24 . . . . . . . . 3 . . . . . . . . . . . 1 1 1 1 5 Impact 3 | . . . . . . . . . . . . . . . . . . . . . . 1 . . . . . . . . . . . . 1 . 1 . Kinetic 85 | . . . 10 1 . 13 29 . . . . . 24 . . . . . . . . 2 . . . . . . . . . . . 1 . 1 . 4 Secondary 6 | . . . . . . 3 2 . . . . . . . . . . . . . . . . . . . . . . . . . . . . . . 1 Self-Inflicted Damage 1155 | . 78 35 109 47 . . . 22 10 . . . 108 . 20 5 . . 230 . . 103 . . . . . . . . . 7 21 89 27 48 24 172 Shots 28 | . 4 1 3 1 . . . 1 1 . . . 3 . 1 . . . 3 . . 2 . . . . . . . . . 1 1 2 . 1 . 3 Rammed 8 | . . . . . . 1 1 . 1 . . . . . . 1 . . 1 . . 1 . . . . . . . . . . . . 1 . 1 . Targets Rammed 15 | . . . . 1 . 1 1 . 1 . . . . . . 1 . . 1 . . 1 . . . . . . . . . . . . 1 . 1 6 Kicked 6 | . . . . . . . . . . . . . . . . . . . . . . . . . . . . . . . . . . . . . . 6 Crushed 1 | . . . . 1 . . . . . . . . . . . . . . . . . . . . . . . . . . . . . . . . . . Highest Temperature 435 | 126 214 72 316 54 . 329 247 287 280 434 200 . 335 309 306 343 207 275 333 . . 262 235 94 149 242 435 361 380 209 58 49 126 316 314 42 267 223 Average Temperature 81 | 55 71 31 82 30 . 84 50 81 74 116 79 . 89 89 92 79 56 79 93 . . 69 56 51 43 130 94 233 123 73 30 12 58 96 51 14 105 88 Received Heat Transfer 5892 | . 219 15 189 . . 117 819 414 675 126 . . 957 . 135 199 27 9 42 . . 231 18 . . 12 396 . 57 27 . 222 39 238 36 63 25 585 Effects 44 | . . . 2 . . 2 1 . 3 1 . . 7 3 6 1 . 5 . . . . . . . 3 3 . . . . . . 1 3 . . 3 Shutdowns 1 | . . . . . . . . . . . . . 1 . . . . . . . . . . . . . . . . . . . . . . . . . Energy Bleed 14 | . . . 2 . . . 1 . . . . . 2 . 3 1 . 2 . . . . . . . . 2 . . . . . . 1 . . . . Interference 28 | . . . . . . 2 . . 3 1 . . 4 3 3 . . 3 . . . . . . . 3 . . . . . . . . 3 . . 3 Damage (minor) 1 | . . . . . . . . . . . . . . . . . . . . . . . . . . . 1 . . . . . . . . . . . Siege Activations . | . . . . . . . . . . . . . . . . . . . . . . . . . . . . . . . . . . . . . . . Martial Activations . | . . . . . . . . . . . . . . . . . . . . . . . . . . . . . . . . . . . . . . . Shielding Activations . | . . . . . . . . . . . . . . . . . . . . . . . . . . . . . . . . . . . . . . . Robots Disrupted 2 | . . . 2 . . . . . . . . . . . . . . . . . . . . . . . . . . . . . . . . . . . Combat Hostiles 2 | . . . 2 . . . . . . . . . . . . . . . . . . . . . . . . . . . . . . . . . . . Robots Corrupted 1 | . . . . . . . . . . . . . . . . . . . . . . 1 . . . . . . . . . . . . . . . . Combat Hostiles 1 | . . . . . . . . . . . . . . . . . . . . . . 1 . . . . . . . . . . . . . . . . Parts Fried 14 | 2 6 . 4 . . . . . . . . . . . . . 1 . . . . 1 . . . . . . . . . . . . . . . . Impact Corruptions 1 | . . . . . . . . . . . . . . . . . . . . . . 1 . . . . . . . . . . . . . . . . Robots Melted 1 | . . . . . . . . . . . . . . . . . . . . . . . . . . . 1 . . . . . . . . . . . Combat Hostiles 1 | . . . . . . . . . . . . . . . . . . . . . . . . . . . 1 . . . . . . . . . . . Parts Melted 19 | . . . 1 . . . . . . . . . . . . 2 . . . . . . . . . . 10 . . 3 . 3 . . . . . . Heat Transferred 3740 | 100 300 50 150 . . . . . . . . . . . . . . . . . . . . . . . 1850 235 148 407 . 100 400 . . . . . Parts Sabotaged 6 | . . . . . . . . . . . . . 6 . . . . . . . . . . . . . . . . . . . . . . . . . Parts Stolen . | . . . . . . . . . . . . . . . . . . . . . . . . . . . . . . . . . . . . . . . Parts Stripped . | . . . . . . . . . . . . . . . . . . . . . . . . . . . . . . . . . . . . . . . Power Chain Reactions 13 | 2 5 1 4 . . . . . . . . . . . . . . . 1 . . . . . . . . . . . . . . . . . . . Alert | -11 -10 -10 -9 -9 -9 -8 -8 -8 -8 -8 -8 -8 -6 -6 -6 -6 -6 -6 -6 -5 -5 -5 -5 -5 -5 -4 -4 -4 -4 -4 -4 -4 -3 -3 -3 -2 -2 -2 ------- Run | Yrd Mat Min Mat Min Exi Min Mat Gar Mat Sto Rec Scr Fac Was Fac Ext Cet Arc Hub Fac Was Fac Upp Upp Zhi Pro Fac Was Fac Upp Upp War Pro Res Tes Res Qua Frg Maximum Alert Level 5 | . . . 3 1 . . 3 5 5 3 1 . 5 2 5 5 3 2 5 2 . 1 . . . . 3 1 1 . . . . 5 4 4 3 5 Low Security (%) 23 | 100 100 100 46 29 . 100 18 . . . 67 . 13 . . . . . 3 . 100 84 . . . . 13 . . . . . . 32 . . . . Level 1 12 | . . . 14 70 . . 28 . . . 32 . 9 . 3 . . . 6 . . 15 . . . . 37 100 100 . . . . 20 27 . 1 . Level 2 16 | . . . 33 . . . 15 3 . 32 . . 14 100 6 . . 100 10 100 . . . . . . 23 . . . . . . 18 31 . 94 4 Level 3 24 | . . . 6 . . . 38 22 9 67 . . 41 . 12 71 100 . 35 . . . . . . . 25 . . . . . . 9 20 45 4 61 Level 4 12 | . . . . . . . . 44 36 . . . 7 . 30 25 . . 34 . . . . . . . . . . . . . . 17 19 54 . 12 Level 5 8 | . . . . . . . . 29 53 . . . 13 . 15 3 . . 9 . . . . . . . . . . . . . . 2 . . . 21 High Security 1 | . . . . . . . . . . . . . . . 32 . . . . . . . . . . . . . . . . . . . . . . . Max Security . | . . . . . . . . . . . . . . . . . . . . . . . . . . . . . . . . . . . . . . . Sterilizations 1 | . . . . . . . 1 . . . . . . . . . . . . . . . . . . . . . . . . . . . . . . . Peak Influence 2457 | 10 190 97 752 396 . 121 1002 2004 1993 1048 256 . 1985 693 2457 1613 1096 606 1618 573 174 263 . . . . 1085 379 327 . . . . 1621 1424 1252 704 2142 Initial 1203 | . . 45 33 290 . . 19 605 976 835 226 . . 693 322 1203 896 414 186 573 169 121 . . . . 28 379 251 . . . . 17 911 796 704 368 Average 729 | 2 65 48 313 252 . 33 545 1331 1536 782 129 . 870 584 1548 1051 993 565 1013 531 167 136 . . . . 455 371 280 . . . . 552 743 1013 589 1148 Influence Increases 31734 | 25 475 92 1371 224 . 349 1674 1439 1605 1059 152 . 3644 34 2687 1308 330 311 2107 2 15 968 120 . 15 75 1853 . 181 40 . 870 275 2987 1787 816 535 2309 Destroy 0b10 Robot/C 13180 | . 220 40 800 120 . 200 1000 540 900 600 60 . 1720 . 860 760 160 80 640 . . 300 . . . 20 520 . 80 40 . 860 240 1080 440 180 80 640 Destroy 0b10 Robot/NC 1675 | 25 80 15 105 15 . 40 130 10 155 145 50 . 250 . 90 60 10 45 80 . . 5 . . 15 . 25 . . . . 10 5 70 80 5 40 115 Destroy Leader 2542 | . 60 10 210 20 . 30 250 20 218 194 . . 430 . 188 84 . . 164 . . 60 . . . 10 118 . 10 . . . 30 204 58 30 16 128 Allied During Kill 2524 | . . 6 22 8 . 31 11 . . . . . 160 . 875 283 139 113 532 . . . . . . . 43 . 11 . . . . 249 . 41 . . Trap Triggered on 0b10 160 | . . . . . . . . . . . . . . . . . . . . . . . . . . . 20 . . . . . . . 70 . 50 20 Successful Hack 1165 | . 13 . 46 . . . 23 30 41 24 41 . 117 . 10 50 . . 54 2 . 70 . . . . 84 . . . . . . 336 101 44 67 12 Select Force Hacks 300 | . . . 60 . . . 60 . 30 . . . 30 . . . . . . . . . . . . . 30 . . . . . . 60 30 . . . Disable Machine 2400 | . 75 . 30 45 . . 105 15 180 60 . . 105 . 285 15 15 60 285 . . 30 . . . . 90 . 15 . . . . 135 240 . 45 570 Anti-Garrison Action 750 | . . . . . . . . 750 . . . . . . . . . . . . . . . . . . . . . . . . . . . . . . Destroy Structure 3033 | . 12 21 83 16 . 18 80 59 81 6 1 . 172 34 124 56 6 13 262 . . 188 . . . . 98 . 20 . . . . 478 288 156 57 704 Partial Spotted 510 | . 15 . . . . . . . . . . . 75 . 30 . . . 30 . 15 30 . . . . 30 . 15 . . . . 90 15 90 15 60 Lose Combat Pursuer 3495 | . . . 15 . . 30 15 15 . 30 . . 585 . 225 . . . 60 . . 285 120 . . 45 795 . 30 . . . . 285 465 270 165 60 Influence Decreases 29667 | 25 357 123 712 750 220 299 793 366 1631 2455 734 . 1663 1554 691 2164 895 812 1471 688 326 883 365 14 15 30 813 726 258 322 . 362 757 1392 1992 980 1132 897 Entered New Map 12730 | . . 73 54 456 220 . 31 326 1028 1143 356 . . 1288 139 1254 705 622 349 598 316 53 97 4 . . 17 706 108 105 . . 508 9 710 620 548 287 Time Decay 9935 | 25 347 40 618 294 . 279 592 . 553 522 378 . 753 246 342 410 180 170 302 90 10 384 268 10 15 30 386 20 70 197 . 232 219 607 522 190 254 380 Lost Part 1663 | . 10 10 20 . . . 130 20 50 . . . 360 . 10 . 10 . 100 . . 157 . . . . 120 . 30 20 . 130 30 196 . 30 10 220 Lost Ally 1450 | . . . 20 . . 20 40 20 . 40 . . 100 20 200 200 . 20 120 . . . . . . . 140 . 50 . . . . 280 10 140 20 10 Purge Threat 3889 | . . . . . . . . . . 750 . . 450 . . 300 . . 600 . . 289 . . . . 150 . . . . . . 300 750 . 300 . Squads Dispatched 226 | . 2 . 9 . . . 10 . 14 8 . . 51 . 24 4 . . 11 . . 12 . . . . 25 . 1 . . . . 18 17 12 5 3 Investigation 89 | . 1 . 8 . . . 4 . 3 3 . . 15 . 3 1 . . 2 . . 6 . . . . 13 . 1 . . . . 15 6 6 1 1 Extermination 24 | . . . . . . . . . . . . . 9 . 1 . . . 1 . . 4 . . . . 3 . . . . . . 1 4 . 1 . Reinforcement 59 | . 1 . 1 . . . 5 . 6 . . . 11 . 4 . . . 8 . . 2 . . . . 7 . . . . . . 1 6 3 2 2 Assault 40 | . . . . . . . 1 . 5 1 . . 10 . 16 3 . . . . . . . . . . 2 . . . . . . . 1 . 1 . Garrison 14 | . . . . . . . . . . 4 . . 6 . . . . . . . . . . . . . . . . . . . . 1 . 3 . . Intercept . | . . . . . . . . . . . . . . . . . . . . . . . . . . . . . . . . . . . . . . . Searches Triggered . | . . . . . . . . . . . . . . . . . . . . . . . . . . . . . . . . . . . . . . . Construction Impeded 14 | . . . . . . . 2 . 4 . . . 1 . 2 . . . 3 . . . . . . . 1 . . . . . . . 1 . . . Haulers Reinforced 11 | . . . . . . . . . . . . . 4 . . . . . . . . . . . . . 3 . . . . . . 1 2 . 1 . Active Scanning Responses . | . . . . . . . . . . . . . . . . . . . . . . . . . . . . . . . . . . . . . . . Cargo Convoy Interrupts . | . . . . . . . . . . . . . . . . . . . . . . . . . . . . . . . . . . . . . . . Stealth | -11 -10 -10 -9 -9 -9 -8 -8 -8 -8 -8 -8 -8 -6 -6 -6 -6 -6 -6 -6 -5 -5 -5 -5 -5 -5 -4 -4 -4 -4 -4 -4 -4 -3 -3 -3 -2 -2 -2 --------- Run | Yrd Mat Min Mat Min Exi Min Mat Gar Mat Sto Rec Scr Fac Was Fac Ext Cet Arc Hub Fac Was Fac Upp Upp Zhi Pro Fac Was Fac Upp Upp War Pro Res Tes Res Qua Frg Distress Signals 57 | . 3 . 5 . . . 2 5 4 1 . . 4 . 1 . 2 . 2 . . 2 . . . . 4 . 2 . . . . 8 6 . 4 2 Communications Jammed . | . . . . . . . . . . . . . . . . . . . . . . . . . . . . . . . . . . . . . . . Distress Signals . | . . . . . . . . . . . . . . . . . . . . . . . . . . . . . . . . . . . . . . . Times Spotted 1204 | . 16 2 50 6 . 12 62 32 63 36 3 . 142 5 60 39 8 6 35 . 6 50 10 . . 15 87 5 24 2 . 116 13 78 62 44 26 89 Peak Tracking Total 20 | . 7 2 6 4 . 3 7 7 6 4 2 . 10 2 7 11 5 2 6 . 6 14 4 . . 7 14 6 17 2 . 20 4 10 11 18 6 13 Tactical Retreats 97 | . . . 1 . . 2 1 1 . 1 . . 16 . 6 . . . 2 . . 10 3 . . 4 15 . 1 . . . . 6 14 7 5 2 Traps | -11 -10 -10 -9 -9 -9 -8 -8 -8 -8 -8 -8 -8 -6 -6 -6 -6 -6 -6 -6 -5 -5 -5 -5 -5 -5 -4 -4 -4 -4 -4 -4 -4 -3 -3 -3 -2 -2 -2 ------- Run | Yrd Mat Min Mat Min Exi Min Mat Gar Mat Sto Rec Scr Fac Was Fac Ext Cet Arc Hub Fac Was Fac Upp Upp Zhi Pro Fac Was Fac Upp Upp War Pro Res Tes Res Qua Frg Traps Triggered 45 | . 3 . 1 . . . 4 3 5 . . . 4 . 2 3 . . 3 1 . 4 . . . . 3 . . . . . . 3 2 3 . 1 Indirectly . | . . . . . . . . . . . . . . . . . . . . . . . . . . . . . . . . . . . . . . . Trap Hack Attempts . | . . . . . . . . . . . . . . . . . . . . . . . . . . . . . . . . . . . . . . . Triggered . | . . . . . . . . . . . . . . . . . . . . . . . . . . . . . . . . . . . . . . . Disarmed 4 | . . . . . . . . . . . . . . . . . . . 4 . . . . . . . . . . . . . . . . . . . Reprogrammed 54 | . . . . . . . . . . . . . . . . 3 . . 3 . . . . . . . 11 . . . . . . 6 15 . 14 2 Reused 16 | . . . . . . . . . . . . . . . . . . . . . . . . . . . 2 . . . . . . . 7 . 5 2 Traps Extracted . | . . . . . . . . . . . . . . . . . . . . . . . . . . . . . . . . . . . . . . . Installed . | . . . . . . . . . . . . . . . . . . . . . . . . . . . . . . . . . . . . . . . Triggered 16 | . . . . . . . . . . . . . . . . . . . . . . . . . . . 2 . . . . . . . 7 . 5 2 Most Traps Carried 1 | . . . . 1 1 . . . . . . 1 . . . . . . . . . . . . . . . . . . . . . . . . . . Machines | -11 -10 -10 -9 -9 -9 -8 -8 -8 -8 -8 -8 -8 -6 -6 -6 -6 -6 -6 -6 -5 -5 -5 -5 -5 -5 -4 -4 -4 -4 -4 -4 -4 -3 -3 -3 -2 -2 -2 ---------- Run | Yrd Mat Min Mat Min Exi Min Mat Gar Mat Sto Rec Scr Fac Was Fac Ext Cet Arc Hub Fac Was Fac Upp Upp Zhi Pro Fac Was Fac Upp Upp War Pro Res Tes Res Qua Frg Machines Disabled 173 | . 5 . 2 3 . . 7 4 12 4 . . 7 . 19 4 2 4 19 . . 2 1 . 1 . 6 . 1 . . 3 . 9 17 . 3 38 Max in Single Turn 13 | . 2 . 1 2 . . 1 1 2 1 . . 2 . 1 1 1 1 6 . . 1 1 . 1 . 1 . 1 . . 2 . 1 4 . 1 13 Garrison Access 5 | . . . . . . . . . . . . . 2 . . . . . . . . 1 . . . . . . . . . . . 1 1 . . . Garrison Relay 3 | . . . . . . . . 3 . . . . . . . . . . . . . . . . . . . . . . . . . . . . . . Network Hub 2 | . . . . . . . . . . . . . . . . . . . 2 . . . . . . . . . . . . . . . . . . . Machines Repaired . | . . . . . . . . . . . . . . . . . . . . . . . . . . . . . . . . . . . . . . . Machines Dismantled . | . . . . . . . . . . . . . . . . . . . . . . . . . . . . . . . . . . . . . . . Machines Sabotaged . | . . . . . . . . . . . . . . . . . . . . . . . . . . . . . . . . . . . . . . . Overloaded Fab Kills . | . . . . . . . . . . . . . . . . . . . . . . . . . . . . . . . . . . . . . . . Hacking | -11 -10 -10 -9 -9 -9 -8 -8 -8 -8 -8 -8 -8 -6 -6 -6 -6 -6 -6 -6 -5 -5 -5 -5 -5 -5 -4 -4 -4 -4 -4 -4 -4 -3 -3 -3 -2 -2 -2 --------- Run | Yrd Mat Min Mat Min Exi Min Mat Gar Mat Sto Rec Scr Fac Was Fac Ext Cet Arc Hub Fac Was Fac Upp Upp Zhi Pro Fac Was Fac Upp Upp War Pro Res Tes Res Qua Frg Machines Accessed 266 | . 8 . 13 . 1 . 11 3 11 14 11 2 35 . 5 12 1 . 12 4 . 19 2 . 4 . 21 . 3 1 1 1 . 25 17 9 14 6 Terminals 139 | . 5 . 9 . . . 7 3 6 9 6 . 15 . . 12 1 . 12 2 . 8 . . . . 7 . 1 . . . . 9 10 2 10 5 Fabricators 18 | . . . . . . . . . . . . . 3 . . . . . . . . 4 . . . . 3 . . . . . . 4 2 2 . . Repair Stations 28 | . 1 . 2 . . . 1 . 1 2 . . 6 . 2 . . . . 1 . 1 . . . . 3 . . . . . . 2 2 2 2 . Recycling Units 42 | . 2 . 1 . . . 1 . 2 2 5 . 7 . 2 . . . . 1 . 3 . . . . 7 . 1 . . . . 5 . 2 . 1 Scanalyzers 17 | . . . 1 . . . 1 . 2 . . . 2 . 1 . . . . . . 2 . . . . 1 . . . . . . 3 2 . 2 . Garrison Access 10 | . . . . . . . 1 . . 1 . . 2 . . . . . . . . 1 . . . . . . 1 . . . . 2 1 1 . . Total Hacks 1123 | . 23 . 47 . 1 . 43 8 34 40 32 4 112 . 11 30 2 . 54 12 . 121 2 . 17 . 115 . 8 1 1 1 . 141 99 43 89 32 Successful 676 | . 13 . 35 . 1 . 20 2 22 26 22 4 67 . 6 15 . . 24 9 . 64 2 . 17 . 77 . 3 1 1 1 . 83 63 27 53 18 Failed 443 | . 10 . 12 . . . 23 6 12 14 9 . 44 . 5 15 2 . 30 3 . 57 . . . . 37 . 5 . . . . 58 36 16 35 14 Catastrophic 68 | . 1 . . . . . 3 1 2 . . . 5 . 2 5 . . 7 . . 13 . . . . 3 . 2 . . . . 9 5 2 6 2 Database Lockouts 4 | . . . . . . . . . . . 1 . 1 . . . . . . . . . . . . . 1 . . . . . . . . . 1 . Manual 656 | . 16 . 34 . . . 35 2 27 28 29 . 64 . 6 18 1 . 27 5 . 64 . . . . 76 . 4 . . . . 68 56 30 43 23 Terminals 672 | . 12 . 30 . . . 26 8 18 25 20 . 56 . . 30 2 . 54 6 . 73 . . . . 63 . 6 . . . . 52 72 15 73 31 Fabricators 82 | . . . . . . . . . . . . . 8 . . . . . . . . 17 . . . . 16 . . . . . . 18 11 12 . . Repair Stations 101 | . 6 . 6 . . . 4 . 2 7 . . 18 . 4 . . . . 2 . 4 . . . . 5 . . . . . . 22 10 4 7 . Recycling Units 116 | . 5 . 4 . . . 1 . 6 5 12 . 18 . 6 . . . . 4 . 7 . . . . 23 . 1 . . . . 16 . 7 . 1 Scanalyzers 88 | . . . 7 . . . 5 . 8 . . . 9 . 1 . . . . . . 12 . . . . 8 . . . . . . 24 5 . 9 . Garrison Access 37 | . . . . . . . 7 . . 3 . . 3 . . . . . . . . 8 . . . . . . 1 . . . . 9 1 5 . . Terminal Hacks 267 | . 1 . 8 . 1 . 4 2 3 11 6 4 17 . . 10 . . 20 3 . 24 2 . 17 . 34 . 1 1 1 1 . 18 33 6 29 10 Record 14 | . . . . . 1 . . . . . . 3 . . . . . . . . . . . . 5 . . . . . . . . 1 2 . 2 . Part Schematic 11 | . . . . . . . . . . . 1 . . . . . . . . . . 3 . . 4 . 1 . . . . . . . 2 . . . Robot Schematic 9 | . . . . . . . . . . . 1 . 1 . . . . . . . . 1 . . . . 1 . . . . . . 4 1 . . . Robot Analysis 43 | . 1 . 4 . . . 4 . 1 . 2 . 6 . . . . . 1 . . 4 . . 4 . 11 . . . . . . 2 1 1 1 . Prototype ID Bank 12 | . . . 1 . . . . . . . . . . . . . . . 3 . . 1 . . 4 . . . . . . . . 1 1 . 1 . Open Door 15 | . . . . . . . . . . 2 . . 1 . . 6 . . . . . . 2 . . . . . . 1 1 1 . . 1 . . . Open DSF 2 | . . . . . . . . . . . . . . . . . . . . 1 . 1 . . . . . . . . . . . . . . . . Level Access Points 2 | . . . . . . . . . . . . . . . . . . . . . . . . . . . 1 . . . . . . . 1 . . . Branch Access Points 10 | . . . . . . . . . 1 1 . . 1 . . . . . . 1 . 1 . . . . 2 . 1 . . . . 1 . 1 . . Emergency Access Points 4 | . . . . . . . . 1 . . . . . . . . . . . . . . . . . . 1 . . . . . . . 1 . . 1 Machine Index 4 | . . . . . . . . . . . . . . . . . . . . . . . . . . . 1 . . . . . . . 1 1 1 . Terminal Index 12 | . . . 1 . . . . . 1 1 1 . 1 . . 1 . . 1 1 . 1 . . . . . . . . . . . . 1 . 1 1 Fabricator Index 2 | . . . . . . . . . . . . . . . . . . . . . . . . . . . . . . . . . . 1 . . 1 . Repair Station Index 3 | . . . . . . . . . . . . . 1 . . . . . . . . . . . . . 1 . . . . . . . . . 1 . Recycling Unit Index 2 | . . . . . . . . . . . . . . . . . . . . . . . . . . . . . . . . . . . 1 . . 1 Garrison Index 2 | . . . . . . . . . . . . . . . . . . . . . . 1 . . . . . . . . . . . . . . 1 . Alert Level 6 | . . . . . . . . . . . . . . . . . . . 1 . . 1 . . . . 1 . . . . . . 1 1 . 1 . Unreport Threat 26 | . . . . . . . . . . 5 . . 3 . . 2 . . 4 . . 2 . . . . 1 . . . . . . 2 5 . 2 . Locate Traps 17 | . . . 2 . . . . . . 1 1 . 2 . . . . . 1 . . 3 . . . . 3 . . . . . . 1 . . 1 2 Disarm Traps 3 | . . . . . . . . . . . . . . . . . . . 1 . . . . . . . . . . . . . . . 1 . 1 . Reprogram Traps 13 | . . . . . . . . . . . . . . . . 1 . . 1 . . . . . . . 3 . . . . . . 1 3 . 3 1 Dispatch Records 2 | . . . . . . . . . . . . . . . . . . . . . . . . . . . . . . . . . . . 1 . 1 . Maintenance Status 2 | . . . . . . . . . . . . . . . . . . . . . . . . . . . . . . . . . . . 1 . 1 . Security Status 2 | . . . . . . . . . . . . . . . . . . . . . . . . . . . . . . . . . . . 1 . 1 . Surveillance Status 1 | . . . . . . . . . . . . . . . . . . . . . . . . . . . . . . . . . . . . . 1 . Patrol Status 1 | . . . . . . . . . . . . . . . . . . . . . . . . . . . . . . . . . . . . . 1 . Extermination Status 1 | . . . . . . . . . . . . . . . . . . . . . . . . . . . . . . . . . . 1 . . . . Recall Investigation 14 | . . . . . . . . . . . . . 1 . . . . . . . . 3 . . . . 3 . . . . . . 2 4 1 . . Recall Extermination 4 | . . . . . . . . . . . . . . . . . . . 1 . . 1 . . . . 1 . . . . . . . 1 . . . Recall Reinforcements 8 | . . . . . . . . . . . . . . . . . . . 2 . . . . . . . 2 . . . . . . . 2 1 1 . Recall Assault 2 | . . . . . . . . . . 1 . . . . . . . . 1 . . . . . . . . . . . . . . . . . . . Hauler Manifests 1 | . . . . . . . . . . . . . . . . . . . . . . . . . . . . . . . . . . . . . 1 . Registered Components 1 | . . . . . . . . . . . . . . . . . . . . . . . . . . . . . . . . . . . . . . 1 Registered Prototypes 1 | . . . . . . . . . . . . . . . . . . . . . . . . . . . . . . . . . . . . . . 1 Zone Layout 13 | . . . . . . . . . . . . . . . . . . . 3 . . 1 . . . . 1 . . . . . . . . 1 5 2 Security Stations 1 | . . . . . . . . 1 . . . . . . . . . . . . . . . . . . . . . . . . . . . . . . Proto ID Catalog 1 | . . . . . . . . . . . . 1 . . . . . . . . . . . . . . . . . . . . . . . . . . Fabricator Hacks 34 | . . . . . . . . . . . . . 2 . . . . . . . . 9 . . . . 6 . . . . . . 9 4 4 . . Network Status 6 | . . . . . . . . . . . . . 1 . . . . . . . . 2 . . . . . . . . . . . . 2 1 . . Load Schematic 14 | . . . . . . . . . . . . . 1 . . . . . . . . 3 . . . . 3 . . . . . . 5 1 1 . . Build 14 | . . . . . . . . . . . . . . . . . . . . . . 4 . . . . 3 . . . . . . 4 1 2 . . Repair Station Hacks 63 | . 5 . 4 . . . 3 . . 5 . . 11 . 2 . . . . 1 . 3 . . . . 2 . . . . . . 12 7 2 6 . Scan Component 35 | . 3 . 2 . . . 2 . . 3 . . 6 . 2 . . . . . . 1 . . . . 1 . . . . . . 7 4 1 3 . Repair 26 | . 2 . 2 . . . 1 . . 2 . . 5 . . . . . . . . 1 . . . . 1 . . . . . . 5 3 1 3 . Refit 2 | . . . . . . . . . . . . . . . . . . . . 1 . 1 . . . . . . . . . . . . . . . . Recycling Unit Hacks 5 | . 1 . . . . . . . . . . . 1 . . . . . . 1 . . . . . . . . . . . . . 2 . . . . Retrieve Components 5 | . 1 . . . . . . . . . . . 1 . . . . . . 1 . . . . . . . . . . . . . 2 . . . . Scanalyzer 58 | . . . 6 . . . 4 . 6 . . . 4 . . . . . . . . 9 . . . . 5 . . . . . . 15 2 . 7 . Insert Component 31 | . . . 3 . . . 2 . 4 . . . 2 . . . . . . . . 4 . . . . 3 . . . . . . 8 1 . 4 . Analyze 27 | . . . 3 . . . 2 . 2 . . . 2 . . . . . . . . 5 . . . . 2 . . . . . . 7 1 . 3 . Garrison Access Hacks 4 | . . . . . . . 1 . . . . . 1 . . . . . . . . 1 . . . . . . . . . . . . 1 . . . Unlock Access 1 | . . . . . . . 1 . . . . . . . . . . . . . . . . . . . . . . . . . . . . . . . Seal Access 3 | . . . . . . . . . . . . . 1 . . . . . . . . 1 . . . . . . . . . . . . 1 . . . Unauthorized Hacks 245 | . 6 . 17 . . . 8 . 13 10 16 . 31 . 4 5 . . 4 4 . 18 . . . . 30 . 2 . . . . 27 16 15 11 8 Terminals 110 | . 4 . 10 . . . 6 . 9 6 9 . 12 . . 5 . . 4 1 . 6 . . . . 6 . 1 . . . . 5 9 1 9 7 Assimilate 8 | . . . . . . . . . . . . . . . . . . . . . . . . . . . 2 . 1 . . . . . 2 . 2 1 Botnet 66 | . . . 3 . . . 3 . 4 3 4 . 11 . . 4 . . 4 1 . 6 . . . . 2 . . . . . . 4 6 1 5 5 Disrupt 1 | . . . . . . . . . . . . . . . . . . . . . . . . . . . . . . . . . . . . . 1 . Operators 7 | . . . . . . . . . . . . . . . . 1 . . . . . . . . . . 2 . . . . . . 1 1 . 1 1 Skim 28 | . 4 . 7 . . . 3 . 5 3 5 . 1 . . . . . . . . . . . . . . . . . . . . . . . . . Fabricators 24 | . . . . . . . . . . . . . 4 . . . . . . . . 5 . . . . 5 . . . . . . 3 4 3 . . Report 6 | . . . . . . . . . . . . . . . . . . . . . . 1 . . . . 2 . . . . . . 1 1 1 . . Liberate 11 | . . . . . . . . . . . . . 3 . . . . . . . . 3 . . . . 2 . . . . . . 1 2 . . . Haulers 7 | . . . . . . . . . . . . . 1 . . . . . . . . 1 . . . . 1 . . . . . . 1 1 2 . . Repair Stations 17 | . . . 2 . . . . . 1 . . . 4 . . . . . . . . 1 . . . . 3 . . . . . . 2 1 2 1 . Mechanics 4 | . . . . . . . . . . . . . . . . . . . . . . 1 . . . . 1 . . . . . . . . 1 1 . Patch 13 | . . . 2 . . . . . 1 . . . 4 . . . . . . . . . . . . . 2 . . . . . . 2 1 1 . . Recycling Units 70 | . 2 . 4 . . . 1 . 2 2 7 . 9 . 4 . . . . 3 . 6 . . . . 15 . 1 . . . . 8 . 5 . 1 Reject 13 | . 1 . 1 . . . . . . . 2 . 1 . 1 . . . . 1 . 1 . . . . 3 . . . . . . 1 . 1 . . Recyclers 12 | . 1 . 1 . . . . . 1 1 1 . 1 . 1 . . . . 1 . 1 . . . . 1 . . . . . . 1 . 1 . . Mask 17 | . . . 1 . . . . . 1 1 4 . 2 . . . . . . 1 . 1 . . . . 4 . . . . . . 1 . 1 . . Tunnel 2 | . . . 1 . . . 1 . . . . . . . . . . . . . . . . . . . . . . . . . . . . . . . Fedlink 25 | . . . . . . . . . . . . . 5 . 2 . . . . . . 3 . . . . 7 . 1 . . . . 5 . 1 . 1 Scrapoids 1 | . . . . . . . . . . . . . . . . . . . . . . . . . . . . . . . . . . . . 1 . . Scanalyzers 11 | . . . 1 . . . 1 . 1 . . . 1 . . . . . . . . . . . . . 1 . . . . . . 3 2 . 1 . Researchers 3 | . . . . . . . . . . . . . . . . . . . . . . . . . . . . . . . . . . 1 1 . 1 . Extract 8 | . . . 1 . . . 1 . 1 . . . 1 . . . . . . . . . . . . . 1 . . . . . . 2 1 . . . Garrison Access 13 | . . . . . . . . . . 2 . . 1 . . . . . . . . . . . . . . . . . . . . 6 . 4 . . Broadcast 2 | . . . . . . . . . . . . . . . . . . . . . . . . . . . . . . . . . . 1 . 1 . . Redirect 2 | . . . . . . . . . . . . . . . . . . . . . . . . . . . . . . . . . . 1 . 1 . . Reprogram 4 | . . . . . . . . . . 1 . . 1 . . . . . . . . . . . . . . . . . . . . 1 . 1 . . Intercept 3 | . . . . . . . . . . 1 . . . . . . . . . . . . . . . . . . . . . . . 2 . . . . Watchers 2 | . . . . . . . . . . . . . . . . . . . . . . . . . . . . . . . . . . 1 . 1 . . Data Cores Recovered 5 | . . . . . . . . . . 2 . . 1 . . . . . 1 . . . . . . . . . . . . . . . . . . 1 Used 1 | . . . . . . . . . . 1 . . . . . . . . . . . . . . . . . . . . . . . . . . . . Hacking Detections 190 | . 8 . 12 . . . 10 3 10 12 9 . 28 . 3 6 1 . 12 2 . 13 . . . . 11 . 2 . . . . 16 12 6 9 5 Full Trace Events 30 | . 1 . 3 . . . 3 2 1 2 . . 4 . . 1 . . 1 . . 3 . . . . 3 . . . . . . 3 2 1 . . Feedback Events 3 | . . . . . . . 1 1 . . . . . . . . . . . . . . . . . . . . . . . . . . 1 . . . Corruption 3 | . . . . . . . 1 1 . . . . . . . . . . . . . . . . . . . . . . . . . . 1 . . . Feedback Blocked . | . . . . . . . . . . . . . . . . . . . . . . . . . . . . . . . . . . . . . . . Robot Schematics Acquired 10 | . . . . . . . . . . . 1 . 1 . . . . . . . . 1 . . . . 1 . . . . . . 4 1 . 1 . Robots Built 19 | . . . . . . . . . . . . . . . . . . . . . . . . . . . 6 . . . . . . 9 . 4 . . Authchips . | . . . . . . . . . . . . . . . . . . . . . . . . . . . . . . . . . . . . . . . Time 754 | . . . . . . . . . . . . . . . . . . . . . . 168 . . . . 196 . . . . . . 260 . 130 . . Total Robot Build Rating 132 | . . . . . . . . . . . . . . . . . . . . . . . . . . . 36 . . . . . . 66 . 30 . . Part Schematics Acquired 69 | . . . 4 . . . 10 . 4 . 1 . 4 . . . . . . . . 6 . . 4 . 5 . . . . . . 20 6 . 5 . Parts Built 5 | . . . . . . . . . . . . . . . . . . . . . . 3 . . . . . . . . . . . . 2 . . . Authchips . | . . . . . . . . . . . . . . . . . . . . . . . . . . . . . . . . . . . . . . . Time 216 | . . . . . . . . . . . . . . . . . . . . . . 181 . . . . . . . . . . . . 35 . . . Total Part Build Rating 34 | . . . . . . . . . . . . . . . . . . . . . . 22 . . . . . . . . . . . . 12 . . . Parts Repaired 22 | . 2 . 2 . . . 1 . . 2 . . 4 . . . . . . . . . . . . . . . . . . . . 5 2 1 3 . Time 1122 | . 97 . 70 . . . 60 . . 68 . . 188 . . . . . . . . 70 . . . . 44 . . . . . . 240 121 29 135 . Parts Recycled . | . . . . . . . . . . . . . . . . . . . . . . . . . . . . . . . . . . . . . . . Recycled Matter . | . . . . . . . . . . . . . . . . . . . . . . . . . . . . . . . . . . . . . . . Retrieved Matter . | . . . . . . . . . . . . . . . . . . . . . . . . . . . . . . . . . . . . . . . Retrieved Components 26 | . 2 . . . . . . . . . . . 10 . . . . . . 3 . . . . . . . . . . . . . 11 . . . . Parts Scanalyzed 25 | . . . 3 . . . 2 . 2 . . . 2 . . . . . . . . 3 . . . . 2 . . . . . . 7 1 . 3 . Part Schematics Acquired 23 | . . . 3 . . . 1 . 2 . . . 1 . . . . . . . . 3 . . . . 2 . . . . . . 7 1 . 3 . Parts Damaged 7 | . . . . . . . . . . . . . 1 . . . . . . . . 2 . . . . . . . . . . . 2 . . 2 . Bothacking | -11 -10 -10 -9 -9 -9 -8 -8 -8 -8 -8 -8 -8 -6 -6 -6 -6 -6 -6 -6 -5 -5 -5 -5 -5 -5 -4 -4 -4 -4 -4 -4 -4 -3 -3 -3 -2 -2 -2 ------------ Run | Yrd Mat Min Mat Min Exi Min Mat Gar Mat Sto Rec Scr Fac Was Fac Ext Cet Arc Hub Fac Was Fac Upp Upp Zhi Pro Fac Was Fac Upp Upp War Pro Res Tes Res Qua Frg Used RIF Installer . | . . . . . . . . . . . . . . . . . . . . . . . . . . . . . . . . . . . . . . . Robots Hacked 3 | . . . . . . . . . . . . . . . . . . . . . . . . . 3 . . . . . . . . . . . . . Non-combat . | . . . . . . . . . . . . . . . . . . . . . . . . . . . . . . . . . . . . . . . Combat 3 | . . . . . . . . . . . . . . . . . . . . . . . . . 3 . . . . . . . . . . . . . Robot Hacks Applied 3 | . . . . . . . . . . . . . . . . . . . . . . . . . 3 . . . . . . . . . . . . . parse_system 3 | . . . . . . . . . . . . . . . . . . . . . . . . . 3 . . . . . . . . . . . . . Relay Couplers Released 17 | . . . . . . . . 13 . . . . 2 . . . . . . . . . . . . . . . . . . . . 2 . . . . Machine Destruction 17 | . . . . . . . . 13 . . . . 2 . . . . . . . . . . . . . . . . . . . . 2 . . . . Fabnet Peak Effective % . | . . . . . . . . . . . . . . . . . . . . . . . . . . . . . . . . . . . . . . . Robots Rewired 10 | . . . . . . . . . . . . . . . . 10 . . . . . . . . . . . . . . . . . . . . . . Allies Hacked 7 | . . . . . . . . . . . . . . . . . . . . . . . . . . . 4 . . . . . . 3 . . . . Hacks Repelled . | . . . . . . . . . . . . . . . . . . . . . . . . . . . . . . . . . . . . . . . Allies | -11 -10 -10 -9 -9 -9 -8 -8 -8 -8 -8 -8 -8 -6 -6 -6 -6 -6 -6 -6 -5 -5 -5 -5 -5 -5 -4 -4 -4 -4 -4 -4 -4 -3 -3 -3 -2 -2 -2 -------- Run | Yrd Mat Min Mat Min Exi Min Mat Gar Mat Sto Rec Scr Fac Was Fac Ext Cet Arc Hub Fac Was Fac Upp Upp Zhi Pro Fac Was Fac Upp Upp War Pro Res Tes Res Qua Frg Total Allies 98 | . . 2 . 3 . . . . . 2 . 1 5 20 . 19 5 . . . . . . . . . 12 . 1 . . . . 16 1 8 2 1 Largest Group 19 | . . 2 2 3 3 3 2 . . 2 . 1 3 19 14 9 11 11 9 . . . . . . . 7 . 2 . . . . 7 1 6 1 1 Highest-Rated Group 787 | . . 42 42 40 40 40 32 . . 10 . 60 139 684 603 333 787 787 609 . . . . . . . 344 . 105 . . . . 314 10 294 45 41 Highest-Rated Ally 159 | . . 31 31 16 16 16 16 . . 5 . 60 60 69 69 159 159 153 96 . . . . . . . 54 . 54 . . . . 82 10 82 45 41 Initial Warlord ECA Mod 28 | . . . . . . . . . 7 7 7 7 . . . . . . . . . . . . . . . . . . . . . . . . . . Total Orders 28 | . . . . . . . . 2 . . . 1 12 . . . . 1 . . . . . . . . 2 . . . . . . 2 . 2 5 1 STAY 15 | . . . . . . . . . . . . 1 6 . . . . 1 . . . . . . . . 1 . . . . . . 1 . 2 2 1 FOLLOW 10 | . . . . . . . . . . . . . 5 . . . . . . . . . . . . . 1 . . . . . . 1 . . 3 . GUARD 1 | . . . . . . . . . . . . . 1 . . . . . . . . . . . . . . . . . . . . . . . . . EXPLORE 2 | . . . . . . . . 2 . . . . . . . . . . . . . . . . . . . . . . . . . . . . . . Ally Attacks 839 | . . 2 20 5 . 19 20 . . 2 . . 134 143 115 117 42 14 61 . . . . . . . 37 . 9 . . . . 79 . 20 . . Total Damage 25011 | . . 21 187 61 . 179 189 . . . . . 2864 6466 3929 2485 730 394 2941 . . . . . . . 1501 . 163 . . . . 2258 . 643 . . Kills 123 | . . 1 2 . . 3 2 . . . . . 17 10 23 15 8 1 22 . . . . . . . 7 . 1 . . . . 9 . 2 . . Allies Corrupted 1 | . . . . . . . . . . . . . . . 1 . . . . . . . . . . . . . . . . . . . . . . . Allies Melted 5 | . . . . . . . . . . . . . . . 2 1 . . 1 . . . . . . . . . . . . . . 1 . . . . Intel | -11 -10 -10 -9 -9 -9 -8 -8 -8 -8 -8 -8 -8 -6 -6 -6 -6 -6 -6 -6 -5 -5 -5 -5 -5 -5 -4 -4 -4 -4 -4 -4 -4 -3 -3 -3 -2 -2 -2 ------- Run | Yrd Mat Min Mat Min Exi Min Mat Gar Mat Sto Rec Scr Fac Was Fac Ext Cet Arc Hub Fac Was Fac Upp Upp Zhi Pro Fac Was Fac Upp Upp War Pro Res Tes Res Qua Frg Active Infowar (turns) 2374 | . . . . . . . . . . 278 . . 86 . 2 . . . . . . 96 55 . 75 117 52 . . 162 . 460 . . . . 117 874 Optics 1453 | . . . . . . . . . . . . . . . 2 . . . . . . . . . . . . . . . . 460 . . . . 117 874 Sensors 165 | . . . . . . . . . . . . . . . . . . . . . . . . . . . 3 . . 162 . . . . . . . . Terrain 96 | . . . . . . . . . . . . . . . . . . . . . . 96 . . . . . . . . . . . . . . . . Machine Analysis 364 | . . . . . . . . . . 278 . . 86 . . . . . . . . . . . . . . . . . . . . . . . . . Jamming 49 | . . . . . . . . . . . . . . . . . . . . . . . . . . . 49 . . . . . . . . . . . ECM 247 | . . . . . . . . . . . . . . . . . . . . . . . 55 . 75 117 . . . . . . . . . . . . Robot Analysis Total 43 | . 1 . 4 . . . 4 . 1 . 2 . 6 . . . . . 1 . . 4 . . 4 . 11 . . . . . . 2 1 1 1 . Derelict Logs Recovered 9 | . . . . 2 . . . . . . . . . . . . . . . . . . 2 1 . 1 . . . 1 2 . . . . . . . Drone Launches 2 | . . . . . . . . 2 . . . . . . . . . . . . . . . . . . . . . . . . . . . . . . Drone Recoveries . | . . . . . . . . . . . . . . . . . . . . . . . . . . . . . . . . . . . . . . . Exploration | -11 -10 -10 -9 -9 -9 -8 -8 -8 -8 -8 -8 -8 -6 -6 -6 -6 -6 -6 -6 -5 -5 -5 -5 -5 -5 -4 -4 -4 -4 -4 -4 -4 -3 -3 -3 -2 -2 -2 ------------- Run | Yrd Mat Min Mat Min Exi Min Mat Gar Mat Sto Rec Scr Fac Was Fac Ext Cet Arc Hub Fac Was Fac Upp Upp Zhi Pro Fac Was Fac Upp Upp War Pro Res Tes Res Qua Frg Turns Passed 36397 | 130 1348 90 2264 659 400 895 2559 2549 1602 1455 999 2290 4248 520 1130 982 361 353 662 192 39 938 627 113 125 142 948 46 150 414 141 1191 548 2013 1452 396 542 884 Spaces Moved 37595 | 60 637 44 1151 395 249 505 1259 1411 761 772 387 1747 5303 723 1453 1015 250 279 794 294 79 1481 1196 353 196 308 1703 96 284 704 276 1738 1078 3791 2091 890 1105 737 Core 216 | 2 . . . . . . . . . . . . . . . . . . . . . 203 . . . . 3 . . . . . . . . . . 8 Treads 8273 | 58 637 44 1151 395 249 505 1259 1411 761 772 387 644 . . . . . . . . . . . . . . . . . . . . . . . . . . Legs 320 | . . . . . . . . . . . . . . . . . . . . . . . . . . . . . . . . . . . . . . 320 Wheels . | . . . . . . . . . . . . . . . . . . . . . . . . . . . . . . . . . . . . . . . Hover 21319 | . . . . . . . . . . . . 1103 5303 723 1453 1015 250 279 794 294 79 612 . . . . . . . . . 50 1078 3791 2091 890 1105 409 Flight 7467 | . . . . . . . . . . . . . . . . . . . . . . 666 1196 353 196 308 1700 96 284 704 276 1688 . . . . . . Fastest Speed 17 | 50 160 160 160 160 160 160 160 160 145 150 150 112 44 47 47 47 51 51 42 48 48 26 26 32 28 17 17 32 29 34 39 21 36 31 17 17 21 18 Average Speed 69 | 156 160 160 160 160 160 160 161 160 149 150 150 126 53 50 48 49 51 51 51 58 48 42 30 32 31 26 27 32 32 38 48 38 36 35 35 27 29 67 Slowest Speed 650 | 160 160 160 240 160 160 160 163 160 160 150 150 176 147 152 111 111 56 51 126 71 48 650 104 32 113 28 250 32 39 122 122 122 36 98 96 30 91 350 Overloaded Moves 900 | . . . . . . . . . . . . . . . . . . . . . . 2 . . . 53 295 . 49 . . . . 27 213 68 92 101 Propulsion Burnouts 1 | . . . . . . . . . . . . . . . . . . . . . . . . . . . . . 1 . . . . . . . . . Robots Hopped 45 | . . . . . . . . . . . . . . . . . . . . . . 5 . . . . 24 . 8 2 . 6 . . . . . . Potential Cave-ins 10 | . . . . . . . . . . . . . . . . . . . . . . . 2 . . . . . . 4 . 2 . . . . . 2 Cave-ins Triggered 2 | . . . . . . . . . . . . . . . . . . . . . . . . . . . . . . 1 . . . . . . . 1 Teleports 1 | . . . . . . . . . . . . . . . . . . . . . . . . . . . . . . . . . . . . . . 1 Exploration Rate (%) 67 | 5 96 13 84 96 66 95 89 88 54 95 90 70 69 95 33 86 66 83 71 8 94 41 87 52 61 56 47 84 9 79 55 88 95 76 84 23 88 44 Regions Visited 38 Branch Regions 22 Pre-discovered Areas 10 | . . . 2 1 1 . 1 . . . 1 . 1 . . . . . . . . . . . 3 . . . . . . . . . . . . . Known Exits Taken 16 | . . . . 1 . 1 1 . 1 1 1 1 . . 1 . . . 1 . . 1 . . . . . . 1 1 . . 1 1 1 1 . . Unknown Exits Taken 15 | 1 1 1 1 . 1 . . . . . . . . . . 1 1 1 . . . . 1 1 1 1 . . . . 1 1 . . . . 1 . Scrap Searched 24 | . . 1 . 2 . 1 . . . . . 7 . . . . . . . . . . 3 1 . 3 . . . 3 2 . 1 . . . . . Spaces Dug 154 | . . . . . . . . . . 2 . . 6 . 10 . . . 6 . . 8 4 . . . 20 . 4 20 . . . 15 10 9 11 29 Terrain Destroyed 2632 | 9 10 23 84 16 . 20 70 16 88 2 . . 190 5 54 121 . 16 342 . . 100 11 . . 3 37 . 16 34 2 222 78 264 253 68 26 452 Melee 15 | . . . . . . . . . . . . . . . . . . . . . . . . . . . . . . . . . . . . 4 11 . Projectile 608 | . . . 5 . . 6 22 3 3 2 . . 14 5 9 20 . 16 36 . . 28 10 . . 3 37 . 16 34 2 31 37 79 75 5 15 95 AOE 2004 | 9 10 23 79 16 . 14 48 13 85 . . . 176 . 45 100 . . 306 . . 72 . . . . . . . . . 191 41 184 176 59 . 357 Terrain Rammed . | . . . . . . . . . . . . . . . . . . . . . . . . . . . . . . . . . . . . . . . Walls Destroyed . | . . . . . . . . . . . . . . . . . . . . . . . . . . . . . . . . . . . . . . . Machines Disabled . | . . . . . . . . . . . . . . . . . . . . . . . . . . . . . . . . . . . . . . . Actions | -11 -10 -10 -9 -9 -9 -8 -8 -8 -8 -8 -8 -8 -6 -6 -6 -6 -6 -6 -6 -5 -5 -5 -5 -5 -5 -4 -4 -4 -4 -4 -4 -4 -3 -3 -3 -2 -2 -2 --------- Run | Yrd Mat Min Mat Min Exi Min Mat Gar Mat Sto Rec Scr Fac Was Fac Ext Cet Arc Hub Fac Was Fac Upp Upp Zhi Pro Fac Was Fac Upp Upp War Pro Res Tes Res Qua Frg Total 44537 | 75 844 51 1405 411 252 536 1512 1588 996 985 792 1847 6210 858 1702 1360 464 443 941 317 80 1729 1420 352 241 351 1958 107 310 811 282 2092 1191 4232 2566 1009 1252 965 Wait 2822 | . 98 . 78 2 . . 6 48 27 79 389 20 345 95 72 124 167 117 32 10 . 67 158 . . 21 90 2 12 60 . 145 74 112 199 64 73 36 Move 37474 | 59 636 43 1150 394 248 504 1258 1408 760 771 386 1746 5303 722 1452 1014 249 278 793 294 78 1470 1195 352 195 307 1658 95 268 698 275 1728 1077 3790 2090 889 1104 737 Hop 38 | . . . . . . . . . . . . . . . . . . . . . . 5 . . . . 21 . 7 2 . 3 . . . . . . Pick Up 445 | 1 20 . 26 3 2 2 26 9 18 11 . 30 63 9 14 5 9 9 6 2 1 13 7 . 3 4 21 3 3 7 1 18 6 39 35 3 9 7 Fast Attach 312 | 6 6 . 5 . . . 10 4 12 4 . 3 45 3 5 1 . 3 9 3 . 20 7 . 8 1 20 . . 2 3 32 1 33 23 4 9 30 Attach 198 | . 3 . 5 . . . 15 2 5 . . 5 37 . . 1 1 . 9 2 . 35 1 . 2 1 5 1 2 7 . 9 2 17 9 3 5 14 Detach 137 | . 2 . 1 . . . 6 . 1 2 . 2 19 . 3 1 . 2 5 . . 30 2 . 1 . 5 . . 6 1 10 . 12 6 2 1 17 Swap 576 | . 8 2 31 2 . 4 25 29 38 13 . 7 70 8 40 24 14 6 9 . . 6 25 . 5 5 15 1 3 2 . 41 6 60 35 6 5 31 Drop 572 | . 7 . 35 3 2 2 28 18 28 12 1 34 65 12 19 8 14 9 5 6 1 22 10 . 8 5 21 3 3 3 2 36 5 61 55 6 10 13 Fire 1698 | 9 64 6 74 6 . 23 137 70 106 93 16 . 263 9 71 54 10 19 46 . . 46 15 . 19 7 102 2 12 23 . 70 20 107 113 10 6 70 Melee 40 | . . . . . . . . . . . . . . . . . . . . . . . . . . . . . . . . . . . . 11 29 . Ram 5 | . . . . . . . . . . . . . . . . 1 . . 1 . . 1 . . . . . . . . . . . . 1 . 1 . Kick 6 | . . . . . . . . . . . . . . . . . . . . . . . . . . . . . . . . . . . . . . 6 Crush 4 | . . . . 1 . 1 1 . 1 . . . . . . . . . . . . . . . . . . . . . . . . . . . . . Escape Stasis 121 | . . . . . . . . . . . . . . . 26 39 . . 26 . . 14 . . . . . . . 1 . . . . . 11 . 4 Rewire 89 | . . . . . . . . . . . . . . . . 88 . . . . . . . . . . . . . . . . . 1 . . . . Trap . | . . . . . . . . . . . . . . . . . . . . . . . . . . . . . . . . . . . . . . . Miscellaneous . | . . . . . . . . . . . . . . . . . . . . . . . . . . . . . . . . . . . . . . . Route ------- -11/Scrapyard -10/Materials (discovered 4 exits: *Mat x3 / [*Min]) -10/Mines (discovered 2 exits: *Mat x2) -9/Materials (discovered 4 exits: *Mat x3 / [*Min]) -9/Mines (discovered 3 exits: *Mat x2 / *Exi) -9/Exiles -8/Mines (discovered 2 exits: *Mat x2) -8/Materials (discovered 5 exits: *Fac x3 / *Sto / Gar) -8/Garrison (discovered 3 exits: *Mat x3) -8/Materials (discovered 3 exits: *Fac / *Sto x2) -8/Storage (discovered 2 exits: *Fac / *Rec) -8/Recycling (discovered 2 exits: *Fac / *Scr) -8/Scraptown -6/Factory (discovered 6 exits: *Fac x2 / *Low x2 / *Ext x2) -6/Waste -6/Factory -6/Extension (discovered 2 exits: *Fac / *Cet) -6/Cetus (discovered 2 exits: *Fac / [*Arc]) -6/Archives (discovered 3 exits: *Fac / *Hub x2) -6/Hub_04(d) (discovered 4 exits: *Fac x4) -5/Factory (discovered 3 exits: Upp x2 / DSF) -5/Waste -5/Factory (discovered 3 exits: *Fac / *Upp x2) -5/Upper Caves -5/Upper Caves -5/Zhirov -4/Proximity Caves -4/Factory (discovered 6 exits: *Res x4 / *Upp x2) -4/Waste -4/Factory (discovered 2 exits: *Upp x2) -4/Upper Caves -4/Upper Caves (discovered 2 exits: Res / *War) -4/Warlord -3/Proximity Caves -3/Research (discovered 3 exits: *Arm / *Tes x2) -3/Testing -2/Research (discovered 2 exits: *Qua x2) -2/Quarantine (discovered 2 exits: [*Sec] / *Frg) -2/Protoforge History --------- Turn | Location | Event 10 | -11/Scrapyard | Discovered new exit (range 15) 131 | -11/Scrapyard | Entered Materials 316 | -10/Materials | Build established: Mutant 368 | -10/Materials | Discovered new exit (range 15) 503 | -10/Materials | Discovered new exit (range 7) 644 | -10/Materials | Discovered new exit (range 14) 985 | -10/Materials | Discovered new exit (range 3) 1066 | -10/Materials | Repaired Broken Hvy. EM Pulse Gun 1121 | -10/Materials | Repaired Corrupted Lgt. Nuclear Core 1479 | -10/Materials | Entered Mines 1487 | -10/Mines | Met a Derelict bent on vengeance 1533 | -10/Mines | Discovered new exit (range 6) 1543 | -10/Mines | Discovered new exit (range 11) 1569 | -10/Mines | Entered Materials 1569 | -9/Materials | Accompanied by 2 allies 1569 | -9/Materials | Evolved 2 slots: Weapon x2 1574 | -9/Materials | Led the pair of lost Derelicts to an unsafe place 1691 | -9/Materials | Repaired Lgt. Nuclear Core 2178 | -9/Materials | Build established: Tank 2234 | -9/Materials | Discovered new exit (range 14) 2243 | -9/Materials | Discovered new exit (range 16) 2613 | -9/Materials | Learned location of 1 exit from Storage 2618 | -9/Materials | Discovered new exit (range 15) 2642 | -9/Materials | Learned 4 Recycling zone layouts 2666 | -9/Materials | Identified exit to Materials 2667 | -9/Materials | Learned location of 1 exit from Recycling 2668 | -9/Materials | Learned location of 1 exit from Recycling 2680 | -9/Materials | Learned location of Zion (-6) 3162 | -9/Materials | Destroyed 7 combat bots 3322 | -9/Materials | Repaired Imp. Light Cannon 3833 | -9/Materials | Entered Mines 3925 | -9/Mines | Discovered exit to Materials (range 8) 3944 | -9/Mines | Assisted by bots powering up and referring to "LRC-V3" 3957 | -9/Mines | Found a Scrap Suit stashed away for nefarious purposes 3997 | -9/Mines | Discovered exit to Materials (range 5) 4122 | -9/Mines | Identified exit to Exiles 4217 | -9/Mines | Found a hidden stash of uninstalled traps 4482 | -9/Mines | Deemed a non-threat by the Exiles lab entrance 4492 | -9/Mines | Entered Exiles 4492 | -9/Exiles | Accompanied by 3 allies 4534 | -9/Exiles | Met 8R-AWN 4567 | -9/Exiles | Met EX-HEX 4627 | -9/Exiles | Met EX-DEC 4689 | -9/Exiles | Met EX-BIN 4875 | -9/Exiles | Discovered new exit (range 12) 4892 | -9/Exiles | Entered Mines 4892 | -8/Mines | Accompanied by 3 allies 5472 | -8/Mines | Discovered exit to Materials (range 6) 5584 | -8/Mines | Build established: Gunner 5672 | -8/Mines | Discovered exit to Materials (range 8) 5787 | -8/Mines | Entered Materials 5787 | -8/Materials | Accompanied by 2 allies 5787 | -8/Materials | Evolved 2 slots: Propulsion x1, Utility x1 6100 | -8/Materials | Discovered new exit (range 10) 6169 | -8/Materials | Discovered new exit (range 6) 6299 | -8/Materials | Destroyed 11 combat bots 6475 | -8/Materials | Discovered new exit (range 16) 6527 | -8/Materials | Identified exit to Garrison 6992 | -8/Materials | Discovered new exit (range 9) 7046 | -8/Materials | Lost 5 parts (2n1u2w) 7296 | -8/Materials | Build established: Tank 7335 | -8/Materials | Repaired Enh. Autogun 7387 | -8/Materials | First assault squad dispatched 7483 | -8/Materials | Destroyed 10 combat bots 7683 | -8/Materials | Sterilization system engaged 7683 | -8/Materials | Non-combat units ordered to evacuate 7772 | -8/Materials | Build established: Scavenger-Tank 7783 | -8/Materials | Combat units ordered to evacuate 7983 | -8/Materials | Ambient heat levels rising (+10) 8133 | -8/Materials | Ambient heat levels rising (+10) 8283 | -8/Materials | Ambient heat levels rising (+10) 8346 | -8/Materials | Entered Garrison 8505 | -8/Garrison | Garrison Relay disabled 8967 | -8/Garrison | Build established: Scavenger-Gunner 9038 | -8/Garrison | Destroyed 11 combat bots 9070 | -8/Garrison | Triggered checkpoint 9240 | -8/Garrison | Discovered new exit (range 12) 9342 | -8/Garrison | Triggered checkpoint 9574 | -8/Garrison | Triggered checkpoint 9584 | -8/Garrison | Triggered checkpoint 9617 | -8/Garrison | Discovered new exit (range 11) 9640 | -8/Garrison | Learned Materials security intel 9650 | -8/Garrison | Triggered checkpoint 9659 | -8/Garrison | Core integrity fell below 50% 9874 | -8/Garrison | Discovered new exit (range 12) 9906 | -8/Garrison | Triggered checkpoint 10055 | -8/Garrison | Garrison Relay disabled 10380 | -8/Garrison | Attempted to access garrison exit controls, blocked by remote lockdown 10508 | -8/Garrison | Attempted to access garrison exit controls, blocked by remote lockdown 10895 | -8/Garrison | Entered Materials 11176 | -8/Materials | Identified exit to Storage 11295 | -8/Materials | First assault squad dispatched 11505 | -8/Materials | Build established: Gunner 11567 | -8/Materials | Discovered new exit (range 9) 12022 | -8/Materials | Lost 3 parts (1n1u1w) 12362 | -8/Materials | Core integrity fell below 20% 12497 | -8/Materials | Entered Storage 12498 | -8/Storage | Identified exit to Factory 12515 | -8/Storage | Build established: Tank 12614 | -8/Storage | Repaired Adv. Treads 12897 | -8/Storage | First assault squad dispatched 12941 | -8/Storage | Identified exit to Recycling 13004 | -8/Storage | Used back door to open Recycling access 13192 | -8/Storage | Build established: Hacker-Gunner 13274 | -8/Storage | Repaired Broken Gauss Rifle 13450 | -8/Storage | Garrison activated, responded to threat 13616 | -8/Storage | Garrison activated, responded to threat 13952 | -8/Storage | Entered Recycling 13953 | -8/Recycling | Identified exit to Factory 13953 | -8/Recycling | Identified exit to Scraptown 14578 | -8/Recycling | Learned Factory terminal intel 14609 | -8/Recycling | Learned 2 Storage zone layouts 14656 | -8/Recycling | Learned location of 2 exits from Lower Caves 14683 | -8/Recycling | Learned 2 Storage zone layouts 14720 | -8/Recycling | Scanned before Scraplab entrance 14938 | -8/Recycling | Entered Scraplab 14951 | -8/Recycling | Entered Scraptown 14951 | -8/Scraptown | System corruption cleaned by C-Scrubber 15184 | -8/Scraptown | Visited UFD Registry 15184 | -8/Scraptown | Registered with UFD as "Protorider" 15205 | -8/Scraptown | Visited Cyclists 15248 | -8/Scraptown | Visited TADAMA 15631 | -8/Scraptown | Visited Modified Component R&D 15700 | -8/Scraptown | Visited Chapter 10 15724 | -8/Scraptown | Visited Botcube Research 15761 | -8/Scraptown | Visited Abandonware Association 15779 | -8/Scraptown | Learned abandonware demo "REVENGE.EXE" 15805 | -8/Scraptown | Visited Sword Containment 15865 | -8/Scraptown | Visited DA-N13 Charitable Foundation 15871 | -8/Scraptown | Found DCF Scrap (29 items) 16220 | -8/Scraptown | Found Scrap Suit 16312 | -8/Scraptown | Build established: Derelict-Gunner 16387 | -8/Scraptown | Found Botcube 16569 | -8/Scraptown | Botcube activated 16591 | -8/Scraptown | Botcube completed mutation into treaded form, armed with 2 guns. 16658 | -8/Scraptown | Visited Science Guys 16780 | -8/Scraptown | Visited Junk Repository 16880 | -8/Scraptown | Visited Junk Repository 17104 | -8/Scraptown | Discovered exit to Factory (range 3) 17176 | -8/Scraptown | Met Optimus 17176 | -8/Scraptown | Accepted into 0bPrime 17241 | -8/Scraptown | Entered Factory 17241 | -6/Factory | Accompanied by 1 ally 17241 | -6/Factory | Evolved 4 slots: Propulsion x2, Utility x2 17242 | -6/Factory | Loaded intel: 28 terminal locations 17552 | -6/Factory | Discovered new exit (range 12) 17580 | -6/Factory | Loaded intel: 8 recycling unit locations 17621 | -6/Factory | Identified exit to Factory 17882 | -6/Factory | Lost 4 parts (1p2n1u) 18051 | -6/Factory | Learned location of Protoforge (-2) 18080 | -6/Factory | Lost 3 parts (3w) 18289 | -6/Factory | Build established: Scavenger-Gunner 18291 | -6/Factory | First assault squad dispatched 18588 | -6/Factory | Discovered new exit (range 15) 18803 | -6/Factory | System corruption reached 10% 18945 | -6/Factory | Spotted B-75 Beast 19110 | -6/Factory | Lost 7 parts (4n1u2w) 19149 | -6/Factory | Found Botcube 19419 | -6/Factory | Discovered exit to Factory (range 5) 19666 | -6/Factory | Identified exit to Lower Caves 19666 | -6/Factory | Identified exit to Extension 20198 | -6/Factory | Repaired Minigun? 20263 | -6/Factory | Repaired Minigun 20308 | -6/Factory | Repaired Kinecellerator 20465 | -6/Factory | Garrison activated, responded to threat 20508 | -6/Factory | Repaired Aerolev Unit? 20727 | -6/Factory | Destroyed 9 combat bots 20845 | -6/Factory | Garrison activated, responded to threat 20886 | -6/Factory | Lost 3 allies 20906 | -6/Factory | Central database locked down 20957 | -6/Factory | Lost 4 parts (1u3w) 21423 | -6/Factory | Build established: Gunner 21489 | -6/Factory | Sucked down chute 21489 | -6/Factory | Entered Waste 21503 | -6/Waste | Warlord forces began an assault 21561 | -6/Waste | Spotted C-40 Crusher 21562 | -6/Waste | Spotted C-40 Crusher 21563 | -6/Waste | Spotted C-40 Crusher 21566 | -6/Waste | Allies destroyed C-40 Crusher 21567 | -6/Waste | Destroyed C-40 Crusher 21575 | -6/Waste | Allies destroyed C-40 Crusher 21582 | -6/Waste | Spotted C-40 Crusher 21586 | -6/Waste | Spotted C-40 Crusher 21590 | -6/Waste | Allies destroyed C-40 Crusher 21595 | -6/Waste | Allies destroyed C-40 Crusher 21606 | -6/Waste | Lost 3 allies 21652 | -6/Waste | Spotted C-40 Crusher 21663 | -6/Waste | Allies destroyed C-40 Crusher 21691 | -6/Waste | Lost 3 allies 21743 | -6/Waste | Discovered new exit (range 10) 21863 | -6/Waste | Botcube activated 21893 | -6/Waste | Found Broken Heavy Servo Lattice 22009 | -6/Waste | Entered Factory 22009 | -6/Factory | Accompanied by 14 allies 22218 | -6/Factory | Loaded intel: 8 recycling unit locations 22222 | -6/Factory | Spotted B-75 Beast 22236 | -6/Factory | Destroyed B-75 Beast 22359 | -6/Factory | First assault squad dispatched 22530 | -6/Factory | Build established: Scavenger-Gunner 22663 | -6/Factory | Core integrity fell below 50% 22712 | -6/Factory | Lost 4 allies 22777 | -6/Factory | High security lockdown imminent 22831 | -6/Factory | Lost 6 allies 22857 | -6/Factory | High security lockdown engaged 23135 | -6/Factory | Discovered exit to Extension (range 5) 23139 | -6/Factory | Entered Extension 23157 | -6/Extension | Rescued a captive Derelict 23157 | -6/Extension | Rescued a captive Derelict 23189 | -6/Extension | Build established: Gunner 23220 | -6/Extension | Rescued a captive Derelict 23223 | -6/Extension | Rescued a captive Derelict 23253 | -6/Extension | Rescued a captive Derelict 23254 | -6/Extension | Rescued a captive Derelict 23489 | -6/Extension | First assault squad dispatched 23650 | -6/Extension | Build established: Commander-Gunner 23666 | -6/Extension | Spotted B-75 Beast 23683 | -6/Extension | Allies destroyed B-75 Beast 23728 | -6/Extension | Spotted B-75 Beast 23749 | -6/Extension | Destroyed B-75 Beast 23764 | -6/Extension | Disrupted transfer network 23781 | -6/Extension | Lost 5 allies 23800 | -6/Extension | Rescued a captive Derelict 23851 | -6/Extension | Rescued A7 23951 | -6/Extension | Destroyed 7 combat bots 24027 | -6/Extension | Rescued a captive Derelict 24029 | -6/Extension | Rescued a captive Derelict 24057 | -6/Extension | Discovered exit to Factory (range 10) 24057 | -6/Extension | Discovered new exit (range 6) 24059 | -6/Extension | Build established: Scavenger-Gunner 24121 | -6/Extension | Entered Cetus 24121 | -6/Cetus | Accompanied by 7 allies (A7) 24126 | -6/Cetus | Acquired a Cetus Manufacturing Module code from A7 24145 | -6/Cetus | Spotted Cetus Guard 24145 | -6/Cetus | Spotted Cetus Guard 24150 | -6/Cetus | Spotted Cetus Guard 24153 | -6/Cetus | Spotted Cetus Guard 24156 | -6/Cetus | Allies destroyed Cetus Guard 24163 | -6/Cetus | Allies destroyed Cetus Guard 24163 | -6/Cetus | Destroyed Cetus Guard 24168 | -6/Cetus | Allies destroyed Cetus Guard 24221 | -6/Cetus | Started Cetus Manufacturing Module 24230 | -6/Cetus | Escorted A7 to Cetus Mainframe 24240 | -6/Cetus | Discovered new exit (range 15) 24246 | -6/Cetus | Manufactured an Enhanced Grunt 24271 | -6/Cetus | Manufactured an Enhanced Grunt 24296 | -6/Cetus | Manufactured an Enhanced Grunt 24321 | -6/Cetus | Manufactured an Enhanced Grunt 24346 | -6/Cetus | Manufactured an Enhanced Grunt 24357 | -6/Cetus | Spotted Cetus Guard 24358 | -6/Cetus | Spotted Cetus Guard 24384 | -6/Cetus | Discovered exit to Factory (range 16) 24387 | -6/Cetus | Met Revision 17 24482 | -6/Cetus | Entered Archives 24482 | -6/Archives | Accompanied by 11 allies (A7) 24487 | -6/Archives | Received a hacking code to weaken MAIN.C 24525 | -6/Archives | Discovered new exit (range 16) 24623 | -6/Archives | Discovered exit to Factory (range 14) 24724 | -6/Archives | Discovered new exit (range 16) 24835 | -6/Archives | Entered Hub_04(d) 24835 | -6/Hub_04(d) | Accompanied by 9 allies 24852 | -6/Hub_04(d) | Discovered exit to Factory (range 16) 24930 | -6/Hub_04(d) | Discovered exit to Factory (range 16) 25009 | -6/Hub_04(d) | Lost 3 allies 25076 | -6/Hub_04(d) | Lost 3 allies 25076 | -6/Hub_04(d) | Discovered exit to Factory (range 5) 25200 | -6/Hub_04(d) | Discovered exit to Factory (range 3) 25289 | -6/Hub_04(d) | Network Hub disabled 25298 | -6/Hub_04(d) | Disrupted transfer network 25304 | -6/Hub_04(d) | Network Hub disabled 25424 | -6/Hub_04(d) | Spotted Lightning 25424 | -6/Hub_04(d) | Spotted Lightning 25424 | -6/Hub_04(d) | Spotted Lightning 25427 | -6/Hub_04(d) | Core integrity fell below 20% 25462 | -6/Hub_04(d) | Lost 6 parts (5n1w) 25497 | -6/Hub_04(d) | Entered Factory 25497 | -5/Factory | Evolved 2 slots: Power x1, Propulsion x1 25517 | -5/Factory | Identified exit to Upper Caves 25587 | -5/Factory | Identified exit to DSF 25689 | -5/Factory | Sucked down chute 25689 | -5/Factory | Entered Waste 25696 | -5/Waste | Spotted C-40 Crusher 25699 | -5/Waste | Spotted C-40 Crusher 25704 | -5/Waste | EMP discharged 25706 | -5/Waste | Spotted C-40 Crusher 25710 | -5/Waste | Build established: Hacker-Mutant 25711 | -5/Waste | Spotted C-40 Crusher 25715 | -5/Waste | Spotted C-40 Crusher 25721 | -5/Waste | Discovered new exit (range 14) 25722 | -5/Waste | Spotted C-40 Crusher 25728 | -5/Waste | Entered Factory 25795 | -5/Factory | Identified exit to DSF 25994 | -5/Factory | Fabricated Q-thruster (x2) 26001 | -5/Factory | System corruption reached 10% 26028 | -5/Factory | Lost 4 parts (1p2n1u) 26124 | -5/Factory | Fabricated Nuclear Pulse Array (x1) 26197 | -5/Factory | Loaded intel: 8 recycling unit locations 26225 | -5/Factory | Discovered new exit (range 16) 26282 | -5/Factory | Lost 6 parts (5n1u) 26345 | -5/Factory | Core integrity fell below 50% 26373 | -5/Factory | Lost 6 parts (1u5w) 26498 | -5/Factory | Core integrity fell below 20% 26666 | -5/Factory | Entered Upper Caves 26679 | -5/Upper Caves | Learned Factory security intel 26837 | -5/Upper Caves | Entered an active Warlord outpost 26921 | -5/Upper Caves | Build established: Hacker-Sprinter 26945 | -5/Upper Caves | Attracted the attention of an 0b10 checkpoint 26976 | -5/Upper Caves | Learned 4 Factory zone layouts 27264 | -5/Upper Caves | Discovered new exit (range 15) 27293 | -5/Upper Caves | Entered another Upper Caves area 27359 | -5/Upper Caves | Learned Factory garrison access intel 27384 | -5/Upper Caves | Discovered new exit (range 10) 27406 | -5/Upper Caves | Entered Zhirov 27406 | -5/Zhirov | Discovered new exit (range 3) 27414 | -5/Zhirov | Met Zhirov 27426 | -5/Zhirov | Found Alien Artifact 27426 | -5/Zhirov | Identified Integrated Reactor 27426 | -5/Zhirov | Installed Integrated Reactor, increased core energy generation (+10) 27507 | -5/Zhirov | Found Alien Artifact 27515 | -5/Zhirov | Learned location of Quarantine (-2) 27515 | -5/Zhirov | Learned location of Testing (-3) 27515 | -5/Zhirov | Learned location of Command (-1) 27519 | -5/Zhirov | Zhirov requested help retrieving the SGEMP Prototype 27531 | -5/Zhirov | Entered Proximity Caves 27533 | -4/Proximity Caves | Attracted the attention of an 0b10 checkpoint 27629 | -4/Proximity Caves | Learned Research garrison access intel 27631 | -4/Proximity Caves | Found DCF Scrap (16 items) 27672 | -4/Proximity Caves | Discovered new exit (range 5) 27673 | -4/Proximity Caves | Entered Factory 27673 | -4/Factory | Evolved 2 slots: Utility x2 27674 | -4/Factory | Identified exit to Upper Caves 27675 | -4/Factory | Discovered new exit (range 12) 27676 | -4/Factory | Loaded intel: 4 garrison access locations 27921 | -4/Factory | Identified exit to Research 27929 | -4/Factory | Central database locked down 28109 | -4/Factory | Loaded intel: 8 recycling unit locations 28197 | -4/Factory | Lost 3 parts (1u2w) 28203 | -4/Factory | Fabricated P-70 Sage (x2) 28253 | -4/Factory | Fabricated P-70 Sage (x2) 28261 | -4/Factory | Sage 7d assimilated hostile G-67 Veteran 28268 | -4/Factory | Sage 7c assimilated hostile G-67 Veteran 28270 | -4/Factory | Sage 7d assimilated hostile G-67 Veteran 28322 | -4/Factory | Spotted B-86 Titan 28342 | -4/Factory | Lost 5 allies 28404 | -4/Factory | Lost 3 parts (1u2w) 28423 | -4/Factory | First assault squad dispatched 28512 | -4/Factory | Spotted B-86 Titan 28549 | -4/Factory | Identified Transdimensional Reconstructor 28620 | -4/Factory | Fabricated P-70 Sage (x2) 28621 | -4/Factory | Manually triggered Chute Trap 28621 | -4/Factory | Sucked down chute 28621 | -4/Factory | Entered Waste 28625 | -4/Waste | Spotted C-40 Crusher 28628 | -4/Waste | Spotted C-40 Crusher 28636 | -4/Waste | EMP discharged 28640 | -4/Waste | Spotted C-40 Crusher 28650 | -4/Waste | Found Broken Fusion Bomb Launcher 28654 | -4/Waste | Discovered new exit (range 16) 28654 | -4/Waste | Spotted C-40 Crusher 28654 | -4/Waste | Spotted C-40 Crusher 28667 | -4/Waste | Entered Factory 28707 | -4/Factory | 2 allies followed down the chute 28767 | -4/Factory | Loaded intel: 8 recycling unit locations 28777 | -4/Factory | Spotted B-86 Titan 28793 | -4/Factory | Spotted B-86 Titan 28817 | -4/Factory | Entered Upper Caves 28845 | -4/Upper Caves | Lost 3 parts (2n1w) 28982 | -4/Upper Caves | Crushed by falling debris 28983 | -4/Upper Caves | Core integrity fell below 50% 28983 | -4/Upper Caves | System corruption reached 10% 28992 | -4/Upper Caves | Attracted the attention of an 0b10 checkpoint 29097 | -4/Upper Caves | Discovered new exit (range 5) 29099 | -4/Upper Caves | Identified exit to Upper Caves 29151 | -4/Upper Caves | Learned Research emergency access door positions 29231 | -4/Upper Caves | Entered another Upper Caves area 29297 | -4/Upper Caves | Learned Research terminal intel 29324 | -4/Upper Caves | Discovered new exit (range 13) 29372 | -4/Upper Caves | Entered Warlord 29413 | -4/Warlord | System corruption cleaned by Quarantine Array 29585 | -4/Warlord | Found Prototype Special Weapon 29586 | -4/Warlord | Found Prototype Special Weapon 29587 | -4/Warlord | Found Prototype Special Weapon 29589 | -4/Warlord | Found Prototype Special Weapon 29590 | -4/Warlord | Found Prototype Special Weapon 29592 | -4/Warlord | Found Prototype Special Weapon 29622 | -4/Warlord | Build established: Hacker-Tank 29630 | -4/Warlord | Rebuked by Warlord 29645 | -4/Warlord | Warlord's base attacked by MAIN.C 29718 | -4/Warlord | Found Prototype Energy Gun 29718 | -4/Warlord | Identified Vortex Rifle 29722 | -4/Warlord | Found Prototype Energy Gun 29722 | -4/Warlord | Identified Vortex Shotgun 29724 | -4/Warlord | Found Vortex Shotgun 29726 | -4/Warlord | Found Vortex Rifle 29826 | -4/Warlord | Found Prototype Hackware 29828 | -4/Warlord | Found Prototype Device 29828 | -4/Warlord | Identified System Purifier 29856 | -4/Warlord | Found Prototype Processor 29856 | -4/Warlord | Identified Spectral Analyzer 29859 | -4/Warlord | Found Prototype Reactor 29866 | -4/Warlord | Identified RU-N14's Throwing Claymores v3 29886 | -4/Warlord | Spotted B-86 Titan 29912 | -4/Warlord | Spotted B-90 Cyclops 29917 | -4/Warlord | Destroyed 10 combat bots 29995 | -4/Warlord | Warlord forces counterattacked 30070 | -4/Warlord | Destroyed 20 combat bots 30076 | -4/Warlord | Lost 4 allies 30080 | -4/Warlord | Spotted Striker 30080 | -4/Warlord | Spotted Striker 30085 | -4/Warlord | Destroyed Striker 30144 | -4/Warlord | Lost 8 allies 30145 | -4/Warlord | Spotted Executioner 30145 | -4/Warlord | Spotted Striker 30145 | -4/Warlord | Spotted Executioner 30149 | -4/Warlord | Destroyed Executioner 30164 | -4/Warlord | Destroyed Striker 30181 | -4/Warlord | Destroyed Executioner 30193 | -4/Warlord | Lost 8 allies 30202 | -4/Warlord | Destroyed 8 combat bots 30202 | -4/Warlord | Lost 4 parts (2p1n1u) 30203 | -4/Warlord | Found Prototype Processor 30203 | -4/Warlord | Identified Exp. Core Analyzer 30205 | -4/Warlord | Found Exp. Core Analyzer 30249 | -4/Warlord | Spotted Striker 30285 | -4/Warlord | Lost 6 allies 30292 | -4/Warlord | Spotted Executioner 30314 | -4/Warlord | Found Prototype Processor 30314 | -4/Warlord | Identified Exp. Targeting Computer 30320 | -4/Warlord | Warlord base infiltrated, sounded retreat 30407 | -4/Warlord | Spotted Striker 30447 | -4/Warlord | Spotted Striker 30483 | -4/Warlord | Lost 6 parts (2p3n1w) 30490 | -4/Warlord | Discovered new exit (range 14) 30491 | -4/Warlord | Lost 5 allies 30505 | -4/Warlord | Spotted Executioner 30563 | -4/Warlord | Entered Proximity Caves 30669 | -3/Proximity Caves | Attracted the attention of an 0b10 checkpoint 30804 | -3/Proximity Caves | Build established: Scavenger-Gunner 30987 | -3/Proximity Caves | Discovered exit to Research (range 11) 31111 | -3/Proximity Caves | Entered Research 31111 | -3/Research | Evolved 2 slots: Propulsion x1, Utility x1 31112 | -3/Research | Identified Ghost Barrier 31113 | -3/Research | Loaded intel: 23 terminal locations 31114 | -3/Research | Loaded intel: 4 garrison access locations 31117 | -3/Research | Loaded intel: 5 recycling unit locations 31160 | -3/Research | Discovered new exit (range 15) 31176 | -3/Research | Identified exit to Armory 31176 | -3/Research | Identified exit to Testing 31258 | -3/Research | Garrison activated, responded to threat 31311 | -3/Research | Revision forces began assault on 0b10 31390 | -3/Research | Met up with Revision 17++ 31407 | -3/Research | Lost 13 parts (2p5n3u3w) 31497 | -3/Research | Found Prototype Launcher 31497 | -3/Research | Identified Tactical Quantum Warhead 31548 | -3/Research | Lost 3 allies 31580 | -3/Research | Found Prototype Device 31580 | -3/Research | Identified Exp. Focal Shield 31583 | -3/Research | Found Exp. Focal Shield 31599 | -3/Research | Identified Vortex Chain Reactor 31612 | -3/Research | Found Tactical Quantum Warhead 31754 | -3/Research | Found Prototype Processor 31754 | -3/Research | Identified Exp. Melee Analysis Suite 31779 | -3/Research | Fabricated P-80 Master? 31811 | -3/Research | Research terminal network offline 31813 | -3/Research | Spotted B-86 Titan 31822 | -3/Research | Destroyed B-86 Titan 31871 | -3/Research | Fabricated P-80 Master? 32085 | -3/Research | Spotted Striker 32093 | -3/Research | Destroyed Striker 32096 | -3/Research | Master 8b assimilated hostile Revision 32101 | -3/Research | Spotted Executioner 32103 | -3/Research | Destroyed Executioner 32129 | -3/Research | Lost 3 allies 32281 | -3/Research | Found Tactical Quantum Warhead 32395 | -3/Research | Master 8d assimilated hostile Y-72 Warden 32502 | -3/Research | Repaired Cld. Antigrav System? 32520 | -3/Research | Found Exp. Core Analyzer 32553 | -3/Research | Repaired Broken Helical Railgun? 32685 | -3/Research | Repaired Cld. Gravmag System? 32724 | -3/Research | Fabricated C-35 Carver (x3) 32794 | -3/Research | Fabricated P-80 Master (x2) 32930 | -3/Research | Lost 3 allies 32952 | -3/Research | Spotted Striker 32958 | -3/Research | Destroyed Striker 32979 | -3/Research | Repaired Broken Adv. Remote Force Field 32986 | -3/Research | Lost 3 allies 33088 | -3/Research | Repaired Broken Helical Railgun? 33112 | -3/Research | Spotted Striker 33117 | -3/Research | Spotted Striker 33124 | -3/Research | Entered Testing 33168 | -3/Testing | Build established: Hacker-Gunner 33222 | -3/Testing | Fabricated Adv. Recoil Stabilizer (x2) 33307 | -3/Testing | Found Prototype Hackware 33307 | -3/Testing | Identified Exp. Hacking Suite 33314 | -3/Testing | Identified exit to Research 33331 | -3/Testing | Scanned by Researcher 33364 | -3/Testing | Found Exp. Hacking Suite 33400 | -3/Testing | Spotted Striker 33457 | -3/Testing | Found Prototype Ballistic Cannon 33457 | -3/Testing | Identified Omega Cannon 33585 | -3/Testing | System corruption reached 10% 33791 | -3/Testing | Repaired Adv. Remote Force Field 33838 | -3/Testing | Repaired Broken Cld. Antigrav System? 34088 | -3/Testing | Found Faulty Exp. Targeting Computer 34174 | -3/Testing | Spotted PD-YAB9AMUVI1 34199 | -3/Testing | Found Prototype Hackware 34199 | -3/Testing | Identified System Mapper 34353 | -3/Testing | Found Exp. Targeting Computer 34374 | -3/Testing | First assault squad dispatched 34382 | -3/Testing | Spotted Striker 34386 | -3/Testing | Spotted Alpha 7 34387 | -3/Testing | Stole the SGEMP Prototype 34576 | -3/Testing | Entered Research 34576 | -2/Research | Evolved 2 slots: Propulsion x2 34604 | -2/Research | Build established: Wizard-Sprinter 34696 | -2/Research | Fabricated W-44 Eye (x2) 34707 | -2/Research | Loaded intel: 5 recycling unit locations 34755 | -2/Research | Lost 3 allies 34764 | -2/Research | Fabricated P-80 Master (x2) 34788 | -2/Research | Identified exit to Quarantine 34822 | -2/Research | Repaired Cld. Gravmag System 34969 | -2/Research | Spotted B-90 Cyclops 34972 | -2/Research | Entered Quarantine 34995 | -2/Quarantine | Lost 3 parts (2n1u) 35041 | -2/Quarantine | Found Alien Artifact 35041 | -2/Quarantine | Identified Subatomic Replicator 35079 | -2/Quarantine | Central database locked down 35099 | -2/Quarantine | Used Subatomic Replicator to replicate Omega Cannon 35144 | -2/Quarantine | Found Alien Energy Cannon 35144 | -2/Quarantine | Identified Core Cannon 35163 | -2/Quarantine | Repaired Cld. Gravmag System 35178 | -2/Quarantine | Discovered new exit (range 10) 35217 | -2/Quarantine | Repaired Cld. Antigrav System? 35222 | -2/Quarantine | First assault squad dispatched 35389 | -2/Quarantine | Found Alien Artifact 35389 | -2/Quarantine | Identified Phase Armor 35442 | -2/Quarantine | Repaired Quantum Reactor? 35442 | -2/Quarantine | Found Alien Artifact 35478 | -2/Quarantine | Identified Core Reset Matrix 35478 | -2/Quarantine | Used Core Reset Matrix 35482 | -2/Quarantine | Detected hypermatrix surge 35482 | -2/Quarantine | Sensed 2 artifacts in vicinity 35494 | -2/Quarantine | Spotted Fortress 35512 | -2/Quarantine | Discovered new exit (range 6) 35512 | -2/Quarantine | Discovered new exit (range 6) 35514 | -2/Quarantine | Entered Protoforge 35515 | -2/Protoforge | Sensed 2 artifacts in vicinity 35542 | -2/Protoforge | Superfortress began startup sequence 35562 | -2/Protoforge | Spotted Hotshot 35564 | -2/Protoforge | Spotted Hotshot 35573 | -2/Protoforge | Destroyed Hotshot 35585 | -2/Protoforge | Destroyed Hotshot 35621 | -2/Protoforge | Spotted B-90 Cyclops 35685 | -2/Protoforge | Spotted Overlord 35688 | -2/Protoforge | Spotted AP7-3 35688 | -2/Protoforge | Spotted AP7-3 35695 | -2/Protoforge | Spotted EXE-6 35695 | -2/Protoforge | Spotted EXE-6 35696 | -2/Protoforge | Spotted Decapitator 35700 | -2/Protoforge | Spotted Decapitator 35728 | -2/Protoforge | UFD initiated attack on Protoforge 35728 | -2/Protoforge | Loaded intel: 3 recycling unit locations 35740 | -2/Protoforge | Core integrity fell below 50% 35748 | -2/Protoforge | Found Prototype Slashing Weapon 35775 | -2/Protoforge | Lost 10 parts (1p6n3u) 35779 | -2/Protoforge | Optimus greeted in Protoforge 35800 | -2/Protoforge | Found Prototype Ballistic Gun 35800 | -2/Protoforge | Identified Cep. XC Strikerail 35803 | -2/Protoforge | Found Cep. XC Strikerail 35805 | -2/Protoforge | Found Cep. XC Strikerail 35813 | -2/Protoforge | Lost 11 allies 35850 | -2/Protoforge | Identified Exp. Terror Saw 35911 | -2/Protoforge | Found Unknown Device 35911 | -2/Protoforge | Identified 0bPrime Scrap Suit 35922 | -2/Protoforge | Found Exp. Core Analyzer 35950 | -2/Protoforge | Found Cep. XC Strikerail 36011 | -2/Protoforge | Found Corrupted 0bPrime Scrap Suit 36012 | -2/Protoforge | System corruption reached 10% 36026 | -2/Protoforge | Spotted Executioner 36046 | -2/Protoforge | Lost 5 allies 36090 | -2/Protoforge | Lost 5 allies 36091 | -2/Protoforge | Spotted Executioner 36092 | -2/Protoforge | Spotted Executioner 36101 | -2/Protoforge | Destroyed Executioner 36125 | -2/Protoforge | Spotted Executioner 36126 | -2/Protoforge | Destroyed 8 combat bots 36126 | -2/Protoforge | Spotted Striker 36129 | -2/Protoforge | Lost 4 allies 36132 | -2/Protoforge | Destroyed Striker 36145 | -2/Protoforge | Destroyed Executioner 36154 | -2/Protoforge | Crushed by falling debris 36184 | -2/Protoforge | Found Unknown Device 36184 | -2/Protoforge | Identified Scrap Suit 36192 | -2/Protoforge | Lost 3 allies 36206 | -2/Protoforge | Spotted Striker 36210 | -2/Protoforge | Spotted Striker 36212 | -2/Protoforge | Destroyed Striker 36254 | -2/Protoforge | UFD reported confirmed Drillbomb installation 36257 | -2/Protoforge | Spotted Executioner 36259 | -2/Protoforge | Spotted Striker 36264 | -2/Protoforge | Found 0bPrime Scrap Suit 36269 | -2/Protoforge | Destroyed Striker 36290 | -2/Protoforge | Destroyed 8 combat bots 36298 | -2/Protoforge | Lost 5 allies 36300 | -2/Protoforge | Spotted Striker 36300 | -2/Protoforge | Destroyed Striker 36310 | -2/Protoforge | Spotted Striker 36328 | -2/Protoforge | P-80 Master assimilated allied 9L-HRY(E) 36330 | -2/Protoforge | Spotted Hotshot 36333 | -2/Protoforge | Spotted Hotshot 36334 | -2/Protoforge | Spotted Hotshot 36334 | -2/Protoforge | Spotted Hotshot 36335 | -2/Protoforge | Spotted Hotshot 36335 | -2/Protoforge | Spotted Hotshot 36336 | -2/Protoforge | Spotted Hotshot 36345 | -2/Protoforge | Destroyed Hotshot 36346 | -2/Protoforge | Spotted Hotshot 36349 | -2/Protoforge | Spotted Hotshot 36349 | -2/Protoforge | Spotted Executioner 36351 | -2/Protoforge | Destroyed Executioner 36351 | -2/Protoforge | Spotted Executioner 36353 | -2/Protoforge | Core integrity fell below 20% 36361 | -2/Protoforge | Warped through subspace 36361 | -2/Protoforge | Spotted Hotshot 36361 | -2/Protoforge | Spotted Hotshot 36369 | -2/Protoforge | Spotted Hotshot 36369 | -2/Protoforge | Spotted Hotshot 36369 | -2/Protoforge | Spotted Hotshot 36369 | -2/Protoforge | Spotted Hotshot 36381 | -2/Protoforge | Lost 6 allies 36398 | -2/Protoforge | Destroyed by Y-72 Warden with Quantum Rifle Last Messages --------------- 36385_ Penetrated by Slug. 36385_ Centrium Medium Armor Plating destroyed. 36386_ 3WUZTZ4A6HD#W=P4FGXFA=4TJ8 36390_ Kicked Y-72 Warden. 36391_ Kicked Y-72 Warden out of the way. 36392_ 0bP_NET: Lugger 643 inbound, all units not involved in other operations escort to target. 36392_ Kicked Y-72 Warden. 36393_ Cep. XC Strikerail destroyed. 36393_ Kicked Y-72 Warden out of the way. 36395_ Slug penetrates Y-72 Warden. 36395_ Slug penetrates Wall. 36395_ Penetrated by Slug. 36396_ Imp. Quantum Reactor destroyed. 36396_ Penetrated by Slug. 36396_ Slug penetrates Wall. 36396_ Kicked Y-72 Warden out of the way. 36397_ Kicked Y-72 Warden. 36398_ Penetrated by Slug. [Achievement: Collector] Map ----- +----------------------------------------------------+ | ??????????????????????????????????????????##???##? | | ????????????????????????????????############???##? | | ????????????????????????????????############???##? | | ????????????????????????????????##?????????#???##? | | ????????????????????????????????##?????????????##? | | ????????????????????##############?????????#???##? | | ????????????????????##############?????????#???### | | ????????????????????##????????##############???### | | ????????????##########????????# ####### ????## | | ????????????##########????????# ?????## | | ????????????##????????????????+ ?????## | | ????????????##?#######????????# ?????## | | ????????????##?#######????????# #?????## | | ????????????##?##???##????????# ######## | | ????????????##?##???##????????# """""" ######## | | ##############?###??##????????# """""" ##?????? | | ##############?###??########### """""" ######## | | ??#????#????????##??########### """""" ######## | | ??#????#????????##???????????## # | | ??#????#????????##???????????## """""" # """ | | ????????????????##???????????## """""" # """ | | ??#????#????????##???????????## """""" # """ | | ??#????#????????##????######### """""" # | | ??#????#????????##????######### + | | ??#????#????????##????## %Y#### """""" # "" | | ###????#????????######## @ #### """""" # S"" | | ??#????################# Y #### """""" # "" | | ??#?? gg """""" #####"## | | ??#?? Y ###### # | | ??#??? ^ ##????## | | ??#?? ##?????# | | ??############################# #########?????# | | ??#######??#################### #########?????# | | #########??#################### ##????????????# | | ?????????????????????????????? ##????????????# | | ????????????????????????????? ##???########## | | ???????????????????????????? ##???########## | | ???????????????????????????? """ #???## ### | | ######################???????""" #???## ??? | | ######################?????? "" " #???## !%[ ??? | | #?????????????????####?????? "%"#???## ??? | | #?????????????????####????? " ???## ### | | #?????????????????####????? ???### #### | | ??????????????????####????" # #??### # " | | #?????????????????####???? #??## # " | | #?????????????????####???? #### " | | #?????????????????####???" % " | | ######################??? [ # | | ???????????????????????? T | | ???????????????????????? # | +----------------------------------------------------+ Best States ------------- Heat Dissipation 100 Coolant Potential 120 Energy Generation 80 Energy Capacity 700 Matter Stores 443 Matter Capacity 600 Sight Range 24 Robot Scan Range 16 Terrain Scan Range 16 Terrain Scan Density 10 ECM Strength 2 Jamming Range 16 Power Amplification 30 Additional Mass Support 20 EM Shielding 4 Armor Coverage 375 Resistance: KI 30 Resistance: TH 25 Core Shielding 20 Propulsion Shielding 66 Weapon Cycling 20 Melee Speed Boost 20 Phase Shifting 5 Evasion (%) 74 Targeting Accuracy 18 Target Analysis 9 Core Analysis 8 Recoil Reduction 7 Matter Filtering 30 Kinecelleration 30 Salvage Targeting 4 Offensive Hacking 52 Defensive Hacking 36 Authchip Count 1 Item Schematics ----------------- None Robot Schematics ------------------ None Fabricated ------------ Q-thruster | x2 | -5/Factory Nuclear Pulse Array | x1 | -5/Factory | Preloaded P-70 Sage | x2 | -4/Factory P-70 Sage | x2 | -4/Factory P-70 Sage | x2 | -4/Factory P-80 Master | x2 | -3/Research P-80 Master | x2 | -3/Research C-35 Carver | x3 | -3/Research | Preloaded P-80 Master | x2 | -3/Research Adv. Recoil Stabilizer | x2 | -3/Testing W-44 Eye | x2 | -2/Research | Preloaded P-80 Master | x2 | -2/Research Repaired ---------- Hvy. EM Pulse Gun | 4% | -10/Materials | Broken Lgt. Nuclear Core | 99% | -10/Materials | Corrupted Lgt. Nuclear Core | 2% | -9/Materials Imp. Light Cannon | 38% | -9/Materials Enh. Autogun | 17% | -8/Materials Adv. Treads | 1% | -8/Storage Gauss Rifle | 25% | -8/Storage | Broken Minigun | 9% | -6/Factory Minigun | 38% | -6/Factory Kinecellerator | 26% | -6/Factory Aerolev Unit | 30% | -6/Factory Cld. Antigrav System | 6% | -3/Research Helical Railgun | 69% | -3/Research | Broken Cld. Gravmag System | 50% | -3/Research Adv. Remote Force Field | 26% | -3/Research | Broken Helical Railgun | 10% | -3/Research | Broken Adv. Remote Force Field | 5% | -3/Testing Cld. Antigrav System | 38% | -3/Testing | Broken Cld. Gravmag System | 43% | -2/Research Cld. Antigrav System | 26% | -2/Quarantine Quantum Reactor | 20% | -2/Quarantine Alien Tech Used ----------------- Integrated Reactor Subatomic Replicator Core Cannon Phase Armor Core Reset Matrix Transdimensional Reconstructor Achievements -------------- Collector Challenges ------------ None Game ------ Seed TerrainCloakingSpecial Manual? 0 Play Time 10:46:52 Cumulative 458.8 hours Start 2025.07.30 @ 12:51:49 End 2025.07.31 @ 20:26:51 Sessions 9 Manual Loads 0 Difficulty Rogue Special Mode None Game No. 253 Rogue 253 Adventurer 0 Explorer 0 Win Type - Total 5 Types 3/0/1/1/0/0/0/0/0/0 Lore% 86 Gallery% 75 Achievement% 68 Wizard Run 0 Options --------- Layout 2 ASCII 0 Keyboard 1 Movement Vi Keybinds 0 Fullscreen 1 Font 16/Tamsyn Map View 55x47 Zoom Use 0% Tactical HUD 1 Map Filters NONE Filters NONE Steam 0 RUN: e901d564-c309-433a-95fa-3b8cd7e5c1d9